Workbook

Sheet Calculator
A1: To test values, type or paste 12 values into the cells below. Press "SORT" to move matches to the top. | N1: =$B$8-O1 -> 364 | O1: =($A$4*S1+$B$4*T1+$C$4*U1+$D$4*V1+$E$4*W1+$F$4*X1+$G$4*Y1+$H$4*Z1+$I$4*AA1+$J$4*AB1+$K$4*AC1+$L$4*AD1) -> 364 | P1: =IF(O1=$E$8,1,0) -> 1 | Q1: =COUNTIF(S1:AD1,1) -> 6 | S1: 0 | T1: 0 | U1: 0 | V1: 0 | W1: 1 | X1: 0 | Y1: 0 | Z1: 1 | AA1: 1 | AB1: 1 | AC1: 1 | AD1: 1
A2: To test random values, press "RANDOM VALUES." Press the button again to generate a new random set. | N2: =$B$8-O2 -> 364 | O2: =($A$4*S2+$B$4*T2+$C$4*U2+$D$4*V2+$E$4*W2+$F$4*X2+$G$4*Y2+$H$4*Z2+$I$4*AA2+$J$4*AB2+$K$4*AC2+$L$4*AD2) -> 364 | P2: =IF(O2=$E$8,1,0) -> 1 | Q2: =COUNTIF(S2:AD2,1) -> 6 | S2: 0 | T2: 1 | U2: 0 | V2: 0 | W2: 1 | X2: 1 | Y2: 1 | Z2: 1 | AA2: 0 | AB2: 1 | AC2: 0 | AD2: 0
N3: =$B$8-O3 -> 364 | O3: =($A$4*S3+$B$4*T3+$C$4*U3+$D$4*V3+$E$4*W3+$F$4*X3+$G$4*Y3+$H$4*Z3+$I$4*AA3+$J$4*AB3+$K$4*AC3+$L$4*AD3) -> 364 | P3: =IF(O3=$E$8,1,0) -> 1 | Q3: =COUNTIF(S3:AD3,1) -> 6 | S3: 0 | T3: 0 | U3: 1 | V3: 1 | W3: 1 | X3: 0 | Y3: 1 | Z3: 0 | AA3: 0 | AB3: 1 | AC3: 0 | AD3: 1
A4: 33 | B4: 31 | C4: 73 | D4: 47 | E4: 64 | F4: 71 | G4: 109 | H4: 50 | I4: 98 | J4: 39 | K4: 81 | L4: 32 | N4: =$B$8-O4 -> 364 | O4: =($A$4*S4+$B$4*T4+$C$4*U4+$D$4*V4+$E$4*W4+$F$4*X4+$G$4*Y4+$H$4*Z4+$I$4*AA4+$J$4*AB4+$K$4*AC4+$L$4*AD4) -> 364 | P4: =IF(O4=$E$8,1,0) -> 1 | Q4: =COUNTIF(S4:AD4,1) -> 6 | S4: 0 | T4: 0 | U4: 1 | V4: 1 | W4: 1 | X4: 0 | Y4: 0 | Z4: 1 | AA4: 1 | AB4: 0 | AC4: 0 | AD4: 1
N5: =$B$8-O5 -> 364 | O5: =($A$4*S5+$B$4*T5+$C$4*U5+$D$4*V5+$E$4*W5+$F$4*X5+$G$4*Y5+$H$4*Z5+$I$4*AA5+$J$4*AB5+$K$4*AC5+$L$4*AD5) -> 364 | P5: =IF(O5=$E$8,1,0) -> 1 | Q5: =COUNTIF(S5:AD5,1) -> 6 | S5: 0 | T5: 1 | U5: 0 | V5: 1 | W5: 1 | X5: 0 | Y5: 1 | Z5: 0 | AA5: 0 | AB5: 0 | AC5: 1 | AD5: 1
N6: =$B$8-O6 -> 340 | O6: =($A$4*S6+$B$4*T6+$C$4*U6+$D$4*V6+$E$4*W6+$F$4*X6+$G$4*Y6+$H$4*Z6+$I$4*AA6+$J$4*AB6+$K$4*AC6+$L$4*AD6) -> 388 | P6: =IF(O6=$E$8,1,0) -> 0 | Q6: =COUNTIF(S6:AD6,1) -> 6 | S6: 0 | T6: 1 | U6: 0 | V6: 1 | W6: 1 | X6: 0 | Y6: 1 | Z6: 0 | AA6: 1 | AB6: 1 | AC6: 0 | AD6: 0
N7: =$B$8-O7 -> 347 | O7: =($A$4*S7+$B$4*T7+$C$4*U7+$D$4*V7+$E$4*W7+$F$4*X7+$G$4*Y7+$H$4*Z7+$I$4*AA7+$J$4*AB7+$K$4*AC7+$L$4*AD7) -> 381 | P7: =IF(O7=$E$8,1,0) -> 0 | Q7: =COUNTIF(S7:AD7,1) -> 6 | S7: 0 | T7: 1 | U7: 0 | V7: 1 | W7: 1 | X7: 0 | Y7: 1 | Z7: 0 | AA7: 1 | AB7: 0 | AC7: 0 | AD7: 1
A8: Total: | B8: =SUM(A4:L4) -> 728 | D8: half: | E8: =B8/2 -> 364 | G8: solutions: | H8: =COUNTIF(O1:O459, E8) -> 5 | N8: =$B$8-O8 -> 342 | O8: =($A$4*S8+$B$4*T8+$C$4*U8+$D$4*V8+$E$4*W8+$F$4*X8+$G$4*Y8+$H$4*Z8+$I$4*AA8+$J$4*AB8+$K$4*AC8+$L$4*AD8) -> 386 | P8: =IF(O8=$E$8,1,0) -> 0 | Q8: =COUNTIF(S8:AD8,1) -> 6 | S8: 0 | T8: 0 | U8: 0 | V8: 1 | W8: 0 | X8: 1 | Y8: 0 | Z8: 1 | AA8: 1 | AB8: 1 | AC8: 1 | AD8: 0
E9: =INT(E8) -> 364 | N9: =$B$8-O9 -> 384 | O9: =($A$4*S9+$B$4*T9+$C$4*U9+$D$4*V9+$E$4*W9+$F$4*X9+$G$4*Y9+$H$4*Z9+$I$4*AA9+$J$4*AB9+$K$4*AC9+$L$4*AD9) -> 344 | P9: =IF(O9=$E$8,1,0) -> 0 | Q9: =COUNTIF(S9:AD9,1) -> 6 | S9: 0 | T9: 1 | U9: 0 | V9: 1 | W9: 1 | X9: 1 | Y9: 0 | Z9: 1 | AA9: 0 | AB9: 0 | AC9: 1 | AD9: 0
N10: =$B$8-O10 -> 321 | O10: =($A$4*S10+$B$4*T10+$C$4*U10+$D$4*V10+$E$4*W10+$F$4*X10+$G$4*Y10+$H$4*Z10+$I$4*AA10+$J$4*AB10+$K$4*AC10+$L$4*AD10) -> 407 | P10: =IF(O10=$E$8,1,0) -> 0 | Q10: =COUNTIF(S10:AD10,1) -> 6 | S10: 0 | T10: 1 | U10: 1 | V10: 0 | W10: 1 | X10: 0 | Y10: 1 | Z10: 0 | AA10: 1 | AB10: 0 | AC10: 0 | AD10: 1
N11: =$B$8-O11 -> 302 | O11: =($A$4*S11+$B$4*T11+$C$4*U11+$D$4*V11+$E$4*W11+$F$4*X11+$G$4*Y11+$H$4*Z11+$I$4*AA11+$J$4*AB11+$K$4*AC11+$L$4*AD11) -> 426 | P11: =IF(O11=$E$8,1,0) -> 0 | Q11: =COUNTIF(S11:AD11,1) -> 6 | S11: 0 | T11: 0 | U11: 1 | V11: 0 | W11: 1 | X11: 0 | Y11: 1 | Z11: 1 | AA11: 1 | AB11: 0 | AC11: 0 | AD11: 1
N12: =$B$8-O12 -> 361 | O12: =($A$4*S12+$B$4*T12+$C$4*U12+$D$4*V12+$E$4*W12+$F$4*X12+$G$4*Y12+$H$4*Z12+$I$4*AA12+$J$4*AB12+$K$4*AC12+$L$4*AD12) -> 367 | P12: =IF(O12=$E$8,1,0) -> 0 | Q12: =COUNTIF(S12:AD12,1) -> 6 | S12: 0 | T12: 1 | U12: 0 | V12: 1 | W12: 0 | X12: 1 | Y12: 0 | Z12: 0 | AA12: 1 | AB12: 1 | AC12: 1 | AD12: 0
N13: =$B$8-O13 -> 353 | O13: =($A$4*S13+$B$4*T13+$C$4*U13+$D$4*V13+$E$4*W13+$F$4*X13+$G$4*Y13+$H$4*Z13+$I$4*AA13+$J$4*AB13+$K$4*AC13+$L$4*AD13) -> 375 | P13: =IF(O13=$E$8,1,0) -> 0 | Q13: =COUNTIF(S13:AD13,1) -> 6 | S13: 0 | T13: 0 | U13: 1 | V13: 1 | W13: 1 | X13: 0 | Y13: 1 | Z13: 1 | AA13: 0 | AB13: 0 | AC13: 0 | AD13: 1
N14: =$B$8-O14 -> 400 | O14: =($A$4*S14+$B$4*T14+$C$4*U14+$D$4*V14+$E$4*W14+$F$4*X14+$G$4*Y14+$H$4*Z14+$I$4*AA14+$J$4*AB14+$K$4*AC14+$L$4*AD14) -> 328 | P14: =IF(O14=$E$8,1,0) -> 0 | Q14: =COUNTIF(S14:AD14,1) -> 6 | S14: 0 | T14: 1 | U14: 0 | V14: 1 | W14: 0 | X14: 0 | Y14: 0 | Z14: 0 | AA14: 1 | AB14: 1 | AC14: 1 | AD14: 1
A15: Dresden Missa | N15: =$B$8-O15 -> 326 | O15: =($A$4*S15+$B$4*T15+$C$4*U15+$D$4*V15+$E$4*W15+$F$4*X15+$G$4*Y15+$H$4*Z15+$I$4*AA15+$J$4*AB15+$K$4*AC15+$L$4*AD15) -> 402 | P15: =IF(O15=$E$8,1,0) -> 0 | Q15: =COUNTIF(S15:AD15,1) -> 6 | S15: 0 | T15: 0 | U15: 1 | V15: 1 | W15: 1 | X15: 0 | Y15: 0 | Z15: 0 | AA15: 1 | AB15: 1 | AC15: 1 | AD15: 0
A16: 126 | B16: 85 | C16: 59 | D16: 100 | E16: 76 | F16: 62 | G16: 46 | H16: 95 | I16: 50 | J16: 86 | K16: 127 | L16: 128 | N16: =$B$8-O16 -> 315 | O16: =($A$4*S16+$B$4*T16+$C$4*U16+$D$4*V16+$E$4*W16+$F$4*X16+$G$4*Y16+$H$4*Z16+$I$4*AA16+$J$4*AB16+$K$4*AC16+$L$4*AD16) -> 413 | P16: =IF(O16=$E$8,1,0) -> 0 | Q16: =COUNTIF(S16:AD16,1) -> 6 | S16: 0 | T16: 0 | U16: 1 | V16: 1 | W16: 1 | X16: 0 | Y16: 0 | Z16: 1 | AA16: 1 | AB16: 0 | AC16: 1 | AD16: 0
N17: =$B$8-O17 -> 274 | O17: =($A$4*S17+$B$4*T17+$C$4*U17+$D$4*V17+$E$4*W17+$F$4*X17+$G$4*Y17+$H$4*Z17+$I$4*AA17+$J$4*AB17+$K$4*AC17+$L$4*AD17) -> 454 | P17: =IF(O17=$E$8,1,0) -> 0 | Q17: =COUNTIF(S17:AD17,1) -> 6 | S17: 0 | T17: 1 | U17: 0 | V17: 0 | W17: 1 | X17: 1 | Y17: 1 | Z17: 0 | AA17: 1 | AB17: 0 | AC17: 1 | AD17: 0
N18: =$B$8-O18 -> 335 | O18: =($A$4*S18+$B$4*T18+$C$4*U18+$D$4*V18+$E$4*W18+$F$4*X18+$G$4*Y18+$H$4*Z18+$I$4*AA18+$J$4*AB18+$K$4*AC18+$L$4*AD18) -> 393 | P18: =IF(O18=$E$8,1,0) -> 0 | Q18: =COUNTIF(S18:AD18,1) -> 6 | S18: 0 | T18: 0 | U18: 0 | V18: 1 | W18: 1 | X18: 1 | Y18: 0 | Z18: 0 | AA18: 1 | AB18: 0 | AC18: 1 | AD18: 1
N19: =$B$8-O19 -> 403 | O19: =($A$4*S19+$B$4*T19+$C$4*U19+$D$4*V19+$E$4*W19+$F$4*X19+$G$4*Y19+$H$4*Z19+$I$4*AA19+$J$4*AB19+$K$4*AC19+$L$4*AD19) -> 325 | P19: =IF(O19=$E$8,1,0) -> 0 | Q19: =COUNTIF(S19:AD19,1) -> 6 | S19: 0 | T19: 1 | U19: 0 | V19: 0 | W19: 1 | X19: 0 | Y19: 1 | Z19: 1 | AA19: 0 | AB19: 1 | AC19: 0 | AD19: 1
N20: =$B$8-O20 -> 332 | O20: =($A$4*S20+$B$4*T20+$C$4*U20+$D$4*V20+$E$4*W20+$F$4*X20+$G$4*Y20+$H$4*Z20+$I$4*AA20+$J$4*AB20+$K$4*AC20+$L$4*AD20) -> 396 | P20: =IF(O20=$E$8,1,0) -> 0 | Q20: =COUNTIF(S20:AD20,1) -> 6 | S20: 0 | T20: 0 | U20: 0 | V20: 1 | W20: 0 | X20: 1 | Y20: 1 | Z20: 0 | AA20: 1 | AB20: 1 | AC20: 0 | AD20: 1
A21: Random | N21: =$B$8-O21 -> 401 | O21: =($A$4*S21+$B$4*T21+$C$4*U21+$D$4*V21+$E$4*W21+$F$4*X21+$G$4*Y21+$H$4*Z21+$I$4*AA21+$J$4*AB21+$K$4*AC21+$L$4*AD21) -> 327 | P21: =IF(O21=$E$8,1,0) -> 0 | Q21: =COUNTIF(S21:AD21,1) -> 6 | S21: 0 | T21: 1 | U21: 1 | V21: 0 | W21: 0 | X21: 1 | Y21: 0 | Z21: 0 | AA21: 0 | AB21: 1 | AC21: 1 | AD21: 1
A22: =RANDBETWEEN(31,130) -> 71 | B22: =RANDBETWEEN(31,130) -> 58 | C22: 82 | D22: 33 | E22: =RANDBETWEEN(31,130) -> 85 | F22: 47 | G22: 94 | H22: 118 | I22: 60 | J22: 51 | K22: 51 | L22: 67 | N22: =$B$8-O22 -> 322 | O22: =($A$4*S22+$B$4*T22+$C$4*U22+$D$4*V22+$E$4*W22+$F$4*X22+$G$4*Y22+$H$4*Z22+$I$4*AA22+$J$4*AB22+$K$4*AC22+$L$4*AD22) -> 406 | P22: =IF(O22=$E$8,1,0) -> 0 | Q22: =COUNTIF(S22:AD22,1) -> 6 | S22: 0 | T22: 1 | U22: 0 | V22: 1 | W22: 0 | X22: 1 | Y22: 1 | Z22: 1 | AA22: 1 | AB22: 0 | AC22: 0 | AD22: 0
N23: =$B$8-O23 -> 342 | O23: =($A$4*S23+$B$4*T23+$C$4*U23+$D$4*V23+$E$4*W23+$F$4*X23+$G$4*Y23+$H$4*Z23+$I$4*AA23+$J$4*AB23+$K$4*AC23+$L$4*AD23) -> 386 | P23: =IF(O23=$E$8,1,0) -> 0 | Q23: =COUNTIF(S23:AD23,1) -> 6 | S23: 0 | T23: 0 | U23: 1 | V23: 1 | W23: 1 | X23: 1 | Y23: 0 | Z23: 1 | AA23: 0 | AB23: 0 | AC23: 1 | AD23: 0
N24: =$B$8-O24 -> 379 | O24: =($A$4*S24+$B$4*T24+$C$4*U24+$D$4*V24+$E$4*W24+$F$4*X24+$G$4*Y24+$H$4*Z24+$I$4*AA24+$J$4*AB24+$K$4*AC24+$L$4*AD24) -> 349 | P24: =IF(O24=$E$8,1,0) -> 0 | Q24: =COUNTIF(S24:AD24,1) -> 6 | S24: 0 | T24: 1 | U24: 1 | V24: 1 | W24: 0 | X24: 0 | Y24: 1 | Z24: 1 | AA24: 0 | AB24: 1 | AC24: 0 | AD24: 0
N25: =$B$8-O25 -> 365 | O25: =($A$4*S25+$B$4*T25+$C$4*U25+$D$4*V25+$E$4*W25+$F$4*X25+$G$4*Y25+$H$4*Z25+$I$4*AA25+$J$4*AB25+$K$4*AC25+$L$4*AD25) -> 363 | P25: =IF(O25=$E$8,1,0) -> 0 | Q25: =COUNTIF(S25:AD25,1) -> 6 | S25: 0 | T25: 1 | U25: 1 | V25: 1 | W25: 0 | X25: 1 | Y25: 1 | Z25: 0 | AA25: 0 | AB25: 0 | AC25: 0 | AD25: 1
N26: =$B$8-O26 -> 358 | O26: =($A$4*S26+$B$4*T26+$C$4*U26+$D$4*V26+$E$4*W26+$F$4*X26+$G$4*Y26+$H$4*Z26+$I$4*AA26+$J$4*AB26+$K$4*AC26+$L$4*AD26) -> 370 | P26: =IF(O26=$E$8,1,0) -> 0 | Q26: =COUNTIF(S26:AD26,1) -> 6 | S26: 0 | T26: 1 | U26: 1 | V26: 0 | W26: 1 | X26: 1 | Y26: 0 | Z26: 1 | AA26: 0 | AB26: 0 | AC26: 1 | AD26: 0
N27: =$B$8-O27 -> 287 | O27: =($A$4*S27+$B$4*T27+$C$4*U27+$D$4*V27+$E$4*W27+$F$4*X27+$G$4*Y27+$H$4*Z27+$I$4*AA27+$J$4*AB27+$K$4*AC27+$L$4*AD27) -> 441 | P27: =IF(O27=$E$8,1,0) -> 0 | Q27: =COUNTIF(S27:AD27,1) -> 6 | S27: 0 | T27: 0 | U27: 0 | V27: 0 | W27: 1 | X27: 0 | Y27: 1 | Z27: 1 | AA27: 1 | AB27: 1 | AC27: 1 | AD27: 0
N28: =$B$8-O28 -> 255 | O28: =($A$4*S28+$B$4*T28+$C$4*U28+$D$4*V28+$E$4*W28+$F$4*X28+$G$4*Y28+$H$4*Z28+$I$4*AA28+$J$4*AB28+$K$4*AC28+$L$4*AD28) -> 473 | P28: =IF(O28=$E$8,1,0) -> 0 | Q28: =COUNTIF(S28:AD28,1) -> 6 | S28: 0 | T28: 0 | U28: 0 | V28: 0 | W28: 1 | X28: 1 | Y28: 1 | Z28: 1 | AA28: 1 | AB28: 0 | AC28: 1 | AD28: 0
N29: =$B$8-O29 -> 354 | O29: =($A$4*S29+$B$4*T29+$C$4*U29+$D$4*V29+$E$4*W29+$F$4*X29+$G$4*Y29+$H$4*Z29+$I$4*AA29+$J$4*AB29+$K$4*AC29+$L$4*AD29) -> 374 | P29: =IF(O29=$E$8,1,0) -> 0 | Q29: =COUNTIF(S29:AD29,1) -> 6 | S29: 0 | T29: 1 | U29: 0 | V29: 1 | W29: 0 | X29: 0 | Y29: 1 | Z29: 1 | AA29: 1 | AB29: 1 | AC29: 0 | AD29: 0
N30: =$B$8-O30 -> 351 | O30: =($A$4*S30+$B$4*T30+$C$4*U30+$D$4*V30+$E$4*W30+$F$4*X30+$G$4*Y30+$H$4*Z30+$I$4*AA30+$J$4*AB30+$K$4*AC30+$L$4*AD30) -> 377 | P30: =IF(O30=$E$8,1,0) -> 0 | Q30: =COUNTIF(S30:AD30,1) -> 6 | S30: 0 | T30: 1 | U30: 0 | V30: 0 | W30: 1 | X30: 1 | Y30: 0 | Z30: 0 | AA30: 1 | AB30: 0 | AC30: 1 | AD30: 1
N31: =$B$8-O31 -> 383 | O31: =($A$4*S31+$B$4*T31+$C$4*U31+$D$4*V31+$E$4*W31+$F$4*X31+$G$4*Y31+$H$4*Z31+$I$4*AA31+$J$4*AB31+$K$4*AC31+$L$4*AD31) -> 345 | P31: =IF(O31=$E$8,1,0) -> 0 | Q31: =COUNTIF(S31:AD31,1) -> 6 | S31: 0 | T31: 1 | U31: 0 | V31: 0 | W31: 1 | X31: 0 | Y31: 0 | Z31: 0 | AA31: 1 | AB31: 1 | AC31: 1 | AD31: 1
N32: =$B$8-O32 -> 357 | O32: =($A$4*S32+$B$4*T32+$C$4*U32+$D$4*V32+$E$4*W32+$F$4*X32+$G$4*Y32+$H$4*Z32+$I$4*AA32+$J$4*AB32+$K$4*AC32+$L$4*AD32) -> 371 | P32: =IF(O32=$E$8,1,0) -> 0 | Q32: =COUNTIF(S32:AD32,1) -> 6 | S32: 0 | T32: 1 | U32: 0 | V32: 1 | W32: 1 | X32: 0 | Y32: 1 | Z32: 0 | AA32: 0 | AB32: 1 | AC32: 1 | AD32: 0
N33: =$B$8-O33 -> 435 | O33: =($A$4*S33+$B$4*T33+$C$4*U33+$D$4*V33+$E$4*W33+$F$4*X33+$G$4*Y33+$H$4*Z33+$I$4*AA33+$J$4*AB33+$K$4*AC33+$L$4*AD33) -> 293 | P33: =IF(O33=$E$8,1,0) -> 0 | Q33: =COUNTIF(S33:AD33,1) -> 6 | S33: 0 | T33: 1 | U33: 1 | V33: 1 | W33: 0 | X33: 1 | Y33: 0 | Z33: 0 | AA33: 0 | AB33: 1 | AC33: 0 | AD33: 1
N34: =$B$8-O34 -> 414 | O34: =($A$4*S34+$B$4*T34+$C$4*U34+$D$4*V34+$E$4*W34+$F$4*X34+$G$4*Y34+$H$4*Z34+$I$4*AA34+$J$4*AB34+$K$4*AC34+$L$4*AD34) -> 314 | P34: =IF(O34=$E$8,1,0) -> 0 | Q34: =COUNTIF(S34:AD34,1) -> 6 | S34: 0 | T34: 1 | U34: 0 | V34: 0 | W34: 1 | X34: 0 | Y34: 0 | Z34: 1 | AA34: 1 | AB34: 1 | AC34: 0 | AD34: 1
N35: =$B$8-O35 -> 399 | O35: =($A$4*S35+$B$4*T35+$C$4*U35+$D$4*V35+$E$4*W35+$F$4*X35+$G$4*Y35+$H$4*Z35+$I$4*AA35+$J$4*AB35+$K$4*AC35+$L$4*AD35) -> 329 | P35: =IF(O35=$E$8,1,0) -> 0 | Q35: =COUNTIF(S35:AD35,1) -> 6 | S35: 0 | T35: 1 | U35: 0 | V35: 1 | W35: 0 | X35: 1 | Y35: 0 | Z35: 1 | AA35: 1 | AB35: 0 | AC35: 0 | AD35: 1
N36: =$B$8-O36 -> 391 | O36: =($A$4*S36+$B$4*T36+$C$4*U36+$D$4*V36+$E$4*W36+$F$4*X36+$G$4*Y36+$H$4*Z36+$I$4*AA36+$J$4*AB36+$K$4*AC36+$L$4*AD36) -> 337 | P36: =IF(O36=$E$8,1,0) -> 0 | Q36: =COUNTIF(S36:AD36,1) -> 6 | S36: 0 | T36: 0 | U36: 1 | V36: 1 | W36: 1 | X36: 1 | Y36: 0 | Z36: 1 | AA36: 0 | AB36: 0 | AC36: 0 | AD36: 1
N37: =$B$8-O37 -> 256 | O37: =($A$4*S37+$B$4*T37+$C$4*U37+$D$4*V37+$E$4*W37+$F$4*X37+$G$4*Y37+$H$4*Z37+$I$4*AA37+$J$4*AB37+$K$4*AC37+$L$4*AD37) -> 472 | P37: =IF(O37=$E$8,1,0) -> 0 | Q37: =COUNTIF(S37:AD37,1) -> 6 | S37: 0 | T37: 0 | U37: 1 | V37: 1 | W37: 1 | X37: 0 | Y37: 1 | Z37: 0 | AA37: 1 | AB37: 0 | AC37: 1 | AD37: 0
N38: =$B$8-O38 -> 368 | O38: =($A$4*S38+$B$4*T38+$C$4*U38+$D$4*V38+$E$4*W38+$F$4*X38+$G$4*Y38+$H$4*Z38+$I$4*AA38+$J$4*AB38+$K$4*AC38+$L$4*AD38) -> 360 | P38: =IF(O38=$E$8,1,0) -> 0 | Q38: =COUNTIF(S38:AD38,1) -> 6 | S38: 0 | T38: 0 | U38: 1 | V38: 1 | W38: 0 | X38: 1 | Y38: 0 | Z38: 0 | AA38: 1 | AB38: 1 | AC38: 0 | AD38: 1
N39: =$B$8-O39 -> 346 | O39: =($A$4*S39+$B$4*T39+$C$4*U39+$D$4*V39+$E$4*W39+$F$4*X39+$G$4*Y39+$H$4*Z39+$I$4*AA39+$J$4*AB39+$K$4*AC39+$L$4*AD39) -> 382 | P39: =IF(O39=$E$8,1,0) -> 0 | Q39: =COUNTIF(S39:AD39,1) -> 6 | S39: 0 | T39: 1 | U39: 1 | V39: 0 | W39: 0 | X39: 0 | Y39: 1 | Z39: 0 | AA39: 1 | AB39: 1 | AC39: 0 | AD39: 1
N40: =$B$8-O40 -> 372 | O40: =($A$4*S40+$B$4*T40+$C$4*U40+$D$4*V40+$E$4*W40+$F$4*X40+$G$4*Y40+$H$4*Z40+$I$4*AA40+$J$4*AB40+$K$4*AC40+$L$4*AD40) -> 356 | P40: =IF(O40=$E$8,1,0) -> 0 | Q40: =COUNTIF(S40:AD40,1) -> 6 | S40: 0 | T40: 1 | U40: 0 | V40: 1 | W40: 0 | X40: 0 | Y40: 1 | Z40: 0 | AA40: 1 | AB40: 1 | AC40: 0 | AD40: 1
N41: =$B$8-O41 -> 368 | O41: =($A$4*S41+$B$4*T41+$C$4*U41+$D$4*V41+$E$4*W41+$F$4*X41+$G$4*Y41+$H$4*Z41+$I$4*AA41+$J$4*AB41+$K$4*AC41+$L$4*AD41) -> 360 | P41: =IF(O41=$E$8,1,0) -> 0 | Q41: =COUNTIF(S41:AD41,1) -> 6 | S41: 0 | T41: 1 | U41: 0 | V41: 1 | W41: 0 | X41: 1 | Y41: 0 | Z41: 0 | AA41: 1 | AB41: 0 | AC41: 1 | AD41: 1
N42: =$B$8-O42 -> 406 | O42: =($A$4*S42+$B$4*T42+$C$4*U42+$D$4*V42+$E$4*W42+$F$4*X42+$G$4*Y42+$H$4*Z42+$I$4*AA42+$J$4*AB42+$K$4*AC42+$L$4*AD42) -> 322 | P42: =IF(O42=$E$8,1,0) -> 0 | Q42: =COUNTIF(S42:AD42,1) -> 6 | S42: 0 | T42: 1 | U42: 0 | V42: 1 | W42: 1 | X42: 0 | Y42: 1 | Z42: 0 | AA42: 0 | AB42: 1 | AC42: 0 | AD42: 1
N43: =$B$8-O43 -> 266 | O43: =($A$4*S43+$B$4*T43+$C$4*U43+$D$4*V43+$E$4*W43+$F$4*X43+$G$4*Y43+$H$4*Z43+$I$4*AA43+$J$4*AB43+$K$4*AC43+$L$4*AD43) -> 462 | P43: =IF(O43=$E$8,1,0) -> 0 | Q43: =COUNTIF(S43:AD43,1) -> 6 | S43: 0 | T43: 0 | U43: 0 | V43: 0 | W43: 1 | X43: 1 | Y43: 1 | Z43: 0 | AA43: 1 | AB43: 1 | AC43: 1 | AD43: 0
N44: =$B$8-O44 -> 348 | O44: =($A$4*S44+$B$4*T44+$C$4*U44+$D$4*V44+$E$4*W44+$F$4*X44+$G$4*Y44+$H$4*Z44+$I$4*AA44+$J$4*AB44+$K$4*AC44+$L$4*AD44) -> 380 | P44: =IF(O44=$E$8,1,0) -> 0 | Q44: =COUNTIF(S44:AD44,1) -> 6 | S44: 0 | T44: 1 | U44: 1 | V44: 0 | W44: 1 | X44: 1 | Y44: 1 | Z44: 0 | AA44: 0 | AB44: 0 | AC44: 0 | AD44: 1
N45: =$B$8-O45 -> 366 | O45: =($A$4*S45+$B$4*T45+$C$4*U45+$D$4*V45+$E$4*W45+$F$4*X45+$G$4*Y45+$H$4*Z45+$I$4*AA45+$J$4*AB45+$K$4*AC45+$L$4*AD45) -> 362 | P45: =IF(O45=$E$8,1,0) -> 0 | Q45: =COUNTIF(S45:AD45,1) -> 6 | S45: 0 | T45: 1 | U45: 1 | V45: 0 | W45: 0 | X45: 1 | Y45: 0 | Z45: 1 | AA45: 1 | AB45: 1 | AC45: 0 | AD45: 0
N46: =$B$8-O46 -> 361 | O46: =($A$4*S46+$B$4*T46+$C$4*U46+$D$4*V46+$E$4*W46+$F$4*X46+$G$4*Y46+$H$4*Z46+$I$4*AA46+$J$4*AB46+$K$4*AC46+$L$4*AD46) -> 367 | P46: =IF(O46=$E$8,1,0) -> 0 | Q46: =COUNTIF(S46:AD46,1) -> 6 | S46: 0 | T46: 1 | U46: 1 | V46: 1 | W46: 1 | X46: 1 | Y46: 0 | Z46: 0 | AA46: 0 | AB46: 0 | AC46: 1 | AD46: 0
N47: =$B$8-O47 -> 354 | O47: =($A$4*S47+$B$4*T47+$C$4*U47+$D$4*V47+$E$4*W47+$F$4*X47+$G$4*Y47+$H$4*Z47+$I$4*AA47+$J$4*AB47+$K$4*AC47+$L$4*AD47) -> 374 | P47: =IF(O47=$E$8,1,0) -> 0 | Q47: =COUNTIF(S47:AD47,1) -> 6 | S47: 0 | T47: 1 | U47: 1 | V47: 1 | W47: 1 | X47: 0 | Y47: 1 | Z47: 1 | AA47: 0 | AB47: 0 | AC47: 0 | AD47: 0
N48: =$B$8-O48 -> 344 | O48: =($A$4*S48+$B$4*T48+$C$4*U48+$D$4*V48+$E$4*W48+$F$4*X48+$G$4*Y48+$H$4*Z48+$I$4*AA48+$J$4*AB48+$K$4*AC48+$L$4*AD48) -> 384 | P48: =IF(O48=$E$8,1,0) -> 0 | Q48: =COUNTIF(S48:AD48,1) -> 6 | S48: 0 | T48: 1 | U48: 1 | V48: 1 | W48: 1 | X48: 1 | Y48: 0 | Z48: 0 | AA48: 1 | AB48: 0 | AC48: 0 | AD48: 0
N49: =$B$8-O49 -> 380 | O49: =($A$4*S49+$B$4*T49+$C$4*U49+$D$4*V49+$E$4*W49+$F$4*X49+$G$4*Y49+$H$4*Z49+$I$4*AA49+$J$4*AB49+$K$4*AC49+$L$4*AD49) -> 348 | P49: =IF(O49=$E$8,1,0) -> 0 | Q49: =COUNTIF(S49:AD49,1) -> 6 | S49: 0 | T49: 1 | U49: 1 | V49: 0 | W49: 1 | X49: 0 | Y49: 0 | Z49: 1 | AA49: 1 | AB49: 0 | AC49: 0 | AD49: 1
N50: =$B$8-O50 -> 307 | O50: =($A$4*S50+$B$4*T50+$C$4*U50+$D$4*V50+$E$4*W50+$F$4*X50+$G$4*Y50+$H$4*Z50+$I$4*AA50+$J$4*AB50+$K$4*AC50+$L$4*AD50) -> 421 | P50: =IF(O50=$E$8,1,0) -> 0 | Q50: =COUNTIF(S50:AD50,1) -> 6 | S50: 0 | T50: 1 | U50: 1 | V50: 0 | W50: 0 | X50: 1 | Y50: 1 | Z50: 0 | AA50: 1 | AB50: 1 | AC50: 0 | AD50: 0
N51: =$B$8-O51 -> 346 | O51: =($A$4*S51+$B$4*T51+$C$4*U51+$D$4*V51+$E$4*W51+$F$4*X51+$G$4*Y51+$H$4*Z51+$I$4*AA51+$J$4*AB51+$K$4*AC51+$L$4*AD51) -> 382 | P51: =IF(O51=$E$8,1,0) -> 0 | Q51: =COUNTIF(S51:AD51,1) -> 6 | S51: 0 | T51: 0 | U51: 1 | V51: 1 | W51: 0 | X51: 1 | Y51: 1 | Z51: 1 | AA51: 0 | AB51: 0 | AC51: 0 | AD51: 1
N52: =$B$8-O52 -> 402 | O52: =($A$4*S52+$B$4*T52+$C$4*U52+$D$4*V52+$E$4*W52+$F$4*X52+$G$4*Y52+$H$4*Z52+$I$4*AA52+$J$4*AB52+$K$4*AC52+$L$4*AD52) -> 326 | P52: =IF(O52=$E$8,1,0) -> 0 | Q52: =COUNTIF(S52:AD52,1) -> 6 | S52: 0 | T52: 0 | U52: 1 | V52: 1 | W52: 1 | X52: 1 | Y52: 0 | Z52: 0 | AA52: 0 | AB52: 1 | AC52: 0 | AD52: 1
N53: =$B$8-O53 -> 264 | O53: =($A$4*S53+$B$4*T53+$C$4*U53+$D$4*V53+$E$4*W53+$F$4*X53+$G$4*Y53+$H$4*Z53+$I$4*AA53+$J$4*AB53+$K$4*AC53+$L$4*AD53) -> 464 | P53: =IF(O53=$E$8,1,0) -> 0 | Q53: =COUNTIF(S53:AD53,1) -> 6 | S53: 0 | T53: 0 | U53: 1 | V53: 0 | W53: 1 | X53: 0 | Y53: 1 | Z53: 0 | AA53: 1 | AB53: 1 | AC53: 1 | AD53: 0
N54: =$B$8-O54 -> 343 | O54: =($A$4*S54+$B$4*T54+$C$4*U54+$D$4*V54+$E$4*W54+$F$4*X54+$G$4*Y54+$H$4*Z54+$I$4*AA54+$J$4*AB54+$K$4*AC54+$L$4*AD54) -> 385 | P54: =IF(O54=$E$8,1,0) -> 0 | Q54: =COUNTIF(S54:AD54,1) -> 6 | S54: 0 | T54: 0 | U54: 1 | V54: 1 | W54: 1 | X54: 1 | Y54: 0 | Z54: 0 | AA54: 1 | AB54: 0 | AC54: 0 | AD54: 1
N55: =$B$8-O55 -> 361 | O55: =($A$4*S55+$B$4*T55+$C$4*U55+$D$4*V55+$E$4*W55+$F$4*X55+$G$4*Y55+$H$4*Z55+$I$4*AA55+$J$4*AB55+$K$4*AC55+$L$4*AD55) -> 367 | P55: =IF(O55=$E$8,1,0) -> 0 | Q55: =COUNTIF(S55:AD55,1) -> 6 | S55: 0 | T55: 1 | U55: 0 | V55: 0 | W55: 1 | X55: 0 | Y55: 1 | Z55: 1 | AA55: 0 | AB55: 0 | AC55: 1 | AD55: 1
N56: =$B$8-O56 -> 331 | O56: =($A$4*S56+$B$4*T56+$C$4*U56+$D$4*V56+$E$4*W56+$F$4*X56+$G$4*Y56+$H$4*Z56+$I$4*AA56+$J$4*AB56+$K$4*AC56+$L$4*AD56) -> 397 | P56: =IF(O56=$E$8,1,0) -> 0 | Q56: =COUNTIF(S56:AD56,1) -> 6 | S56: 0 | T56: 1 | U56: 1 | V56: 0 | W56: 0 | X56: 1 | Y56: 1 | Z56: 0 | AA56: 0 | AB56: 0 | AC56: 1 | AD56: 1
N57: =$B$8-O57 -> 381 | O57: =($A$4*S57+$B$4*T57+$C$4*U57+$D$4*V57+$E$4*W57+$F$4*X57+$G$4*Y57+$H$4*Z57+$I$4*AA57+$J$4*AB57+$K$4*AC57+$L$4*AD57) -> 347 | P57: =IF(O57=$E$8,1,0) -> 0 | Q57: =COUNTIF(S57:AD57,1) -> 6 | S57: 0 | T57: 1 | U57: 0 | V57: 1 | W57: 0 | X57: 1 | Y57: 1 | Z57: 1 | AA57: 0 | AB57: 1 | AC57: 0 | AD57: 0
N58: =$B$8-O58 -> 426 | O58: =($A$4*S58+$B$4*T58+$C$4*U58+$D$4*V58+$E$4*W58+$F$4*X58+$G$4*Y58+$H$4*Z58+$I$4*AA58+$J$4*AB58+$K$4*AC58+$L$4*AD58) -> 302 | P58: =IF(O58=$E$8,1,0) -> 0 | Q58: =COUNTIF(S58:AD58,1) -> 6 | S58: 0 | T58: 1 | U58: 0 | V58: 1 | W58: 1 | X58: 1 | Y58: 0 | Z58: 1 | AA58: 0 | AB58: 1 | AC58: 0 | AD58: 0
N59: =$B$8-O59 -> 381 | O59: =($A$4*S59+$B$4*T59+$C$4*U59+$D$4*V59+$E$4*W59+$F$4*X59+$G$4*Y59+$H$4*Z59+$I$4*AA59+$J$4*AB59+$K$4*AC59+$L$4*AD59) -> 347 | P59: =IF(O59=$E$8,1,0) -> 0 | Q59: =COUNTIF(S59:AD59,1) -> 6 | S59: 0 | T59: 0 | U59: 0 | V59: 1 | W59: 0 | X59: 0 | Y59: 0 | Z59: 1 | AA59: 1 | AB59: 1 | AC59: 1 | AD59: 1
N60: =$B$8-O60 -> 406 | O60: =($A$4*S60+$B$4*T60+$C$4*U60+$D$4*V60+$E$4*W60+$F$4*X60+$G$4*Y60+$H$4*Z60+$I$4*AA60+$J$4*AB60+$K$4*AC60+$L$4*AD60) -> 322 | P60: =IF(O60=$E$8,1,0) -> 0 | Q60: =COUNTIF(S60:AD60,1) -> 6 | S60: 0 | T60: 0 | U60: 1 | V60: 1 | W60: 0 | X60: 0 | Y60: 0 | Z60: 1 | AA60: 0 | AB60: 1 | AC60: 1 | AD60: 1
N61: =$B$8-O61 -> 258 | O61: =($A$4*S61+$B$4*T61+$C$4*U61+$D$4*V61+$E$4*W61+$F$4*X61+$G$4*Y61+$H$4*Z61+$I$4*AA61+$J$4*AB61+$K$4*AC61+$L$4*AD61) -> 470 | P61: =IF(O61=$E$8,1,0) -> 0 | Q61: =COUNTIF(S61:AD61,1) -> 6 | S61: 0 | T61: 0 | U61: 0 | V61: 1 | W61: 1 | X61: 1 | Y61: 1 | Z61: 0 | AA61: 1 | AB61: 0 | AC61: 1 | AD61: 0
N62: =$B$8-O62 -> 369 | O62: =($A$4*S62+$B$4*T62+$C$4*U62+$D$4*V62+$E$4*W62+$F$4*X62+$G$4*Y62+$H$4*Z62+$I$4*AA62+$J$4*AB62+$K$4*AC62+$L$4*AD62) -> 359 | P62: =IF(O62=$E$8,1,0) -> 0 | Q62: =COUNTIF(S62:AD62,1) -> 6 | S62: 0 | T62: 1 | U62: 0 | V62: 0 | W62: 0 | X62: 0 | Y62: 1 | Z62: 1 | AA62: 1 | AB62: 1 | AC62: 0 | AD62: 1
N63: =$B$8-O63 -> 431 | O63: =($A$4*S63+$B$4*T63+$C$4*U63+$D$4*V63+$E$4*W63+$F$4*X63+$G$4*Y63+$H$4*Z63+$I$4*AA63+$J$4*AB63+$K$4*AC63+$L$4*AD63) -> 297 | P63: =IF(O63=$E$8,1,0) -> 0 | Q63: =COUNTIF(S63:AD63,1) -> 6 | S63: 0 | T63: 1 | U63: 0 | V63: 1 | W63: 0 | X63: 0 | Y63: 0 | Z63: 1 | AA63: 1 | AB63: 1 | AC63: 0 | AD63: 1
N64: =$B$8-O64 -> 338 | O64: =($A$4*S64+$B$4*T64+$C$4*U64+$D$4*V64+$E$4*W64+$F$4*X64+$G$4*Y64+$H$4*Z64+$I$4*AA64+$J$4*AB64+$K$4*AC64+$L$4*AD64) -> 390 | P64: =IF(O64=$E$8,1,0) -> 0 | Q64: =COUNTIF(S64:AD64,1) -> 6 | S64: 0 | T64: 0 | U64: 0 | V64: 1 | W64: 0 | X64: 1 | Y64: 1 | Z64: 1 | AA64: 0 | AB64: 0 | AC64: 1 | AD64: 1
N65: =$B$8-O65 -> 367 | O65: =($A$4*S65+$B$4*T65+$C$4*U65+$D$4*V65+$E$4*W65+$F$4*X65+$G$4*Y65+$H$4*Z65+$I$4*AA65+$J$4*AB65+$K$4*AC65+$L$4*AD65) -> 361 | P65: =IF(O65=$E$8,1,0) -> 0 | Q65: =COUNTIF(S65:AD65,1) -> 6 | S65: 0 | T65: 0 | U65: 0 | V65: 1 | W65: 1 | X65: 0 | Y65: 0 | Z65: 0 | AA65: 1 | AB65: 1 | AC65: 1 | AD65: 1
N66: =$B$8-O66 -> 349 | O66: =($A$4*S66+$B$4*T66+$C$4*U66+$D$4*V66+$E$4*W66+$F$4*X66+$G$4*Y66+$H$4*Z66+$I$4*AA66+$J$4*AB66+$K$4*AC66+$L$4*AD66) -> 379 | P66: =IF(O66=$E$8,1,0) -> 0 | Q66: =COUNTIF(S66:AD66,1) -> 6 | S66: 0 | T66: 0 | U66: 0 | V66: 1 | W66: 1 | X66: 0 | Y66: 0 | Z66: 1 | AA66: 1 | AB66: 1 | AC66: 1 | AD66: 0
N67: =$B$8-O67 -> 425 | O67: =($A$4*S67+$B$4*T67+$C$4*U67+$D$4*V67+$E$4*W67+$F$4*X67+$G$4*Y67+$H$4*Z67+$I$4*AA67+$J$4*AB67+$K$4*AC67+$L$4*AD67) -> 303 | P67: =IF(O67=$E$8,1,0) -> 0 | Q67: =COUNTIF(S67:AD67,1) -> 6 | S67: 0 | T67: 0 | U67: 0 | V67: 1 | W67: 1 | X67: 1 | Y67: 0 | Z67: 1 | AA67: 0 | AB67: 1 | AC67: 0 | AD67: 1
N68: =$B$8-O68 -> 378 | O68: =($A$4*S68+$B$4*T68+$C$4*U68+$D$4*V68+$E$4*W68+$F$4*X68+$G$4*Y68+$H$4*Z68+$I$4*AA68+$J$4*AB68+$K$4*AC68+$L$4*AD68) -> 350 | P68: =IF(O68=$E$8,1,0) -> 0 | Q68: =COUNTIF(S68:AD68,1) -> 6 | S68: 0 | T68: 1 | U68: 0 | V68: 1 | W68: 1 | X68: 1 | Y68: 0 | Z68: 0 | AA68: 1 | AB68: 1 | AC68: 0 | AD68: 0
N69: =$B$8-O69 -> 285 | O69: =($A$4*S69+$B$4*T69+$C$4*U69+$D$4*V69+$E$4*W69+$F$4*X69+$G$4*Y69+$H$4*Z69+$I$4*AA69+$J$4*AB69+$K$4*AC69+$L$4*AD69) -> 443 | P69: =IF(O69=$E$8,1,0) -> 0 | Q69: =COUNTIF(S69:AD69,1) -> 6 | S69: 0 | T69: 0 | U69: 1 | V69: 0 | W69: 0 | X69: 0 | Y69: 1 | Z69: 1 | AA69: 1 | AB69: 0 | AC69: 1 | AD69: 1
N70: =$B$8-O70 -> 354 | O70: =($A$4*S70+$B$4*T70+$C$4*U70+$D$4*V70+$E$4*W70+$F$4*X70+$G$4*Y70+$H$4*Z70+$I$4*AA70+$J$4*AB70+$K$4*AC70+$L$4*AD70) -> 374 | P70: =IF(O70=$E$8,1,0) -> 0 | Q70: =COUNTIF(S70:AD70,1) -> 6 | S70: 0 | T70: 1 | U70: 0 | V70: 0 | W70: 1 | X70: 0 | Y70: 1 | Z70: 1 | AA70: 0 | AB70: 1 | AC70: 1 | AD70: 0
N71: =$B$8-O71 -> 339 | O71: =($A$4*S71+$B$4*T71+$C$4*U71+$D$4*V71+$E$4*W71+$F$4*X71+$G$4*Y71+$H$4*Z71+$I$4*AA71+$J$4*AB71+$K$4*AC71+$L$4*AD71) -> 389 | P71: =IF(O71=$E$8,1,0) -> 0 | Q71: =COUNTIF(S71:AD71,1) -> 6 | S71: 0 | T71: 1 | U71: 0 | V71: 1 | W71: 0 | X71: 1 | Y71: 1 | Z71: 1 | AA71: 0 | AB71: 0 | AC71: 1 | AD71: 0
N72: =$B$8-O72 -> 302 | O72: =($A$4*S72+$B$4*T72+$C$4*U72+$D$4*V72+$E$4*W72+$F$4*X72+$G$4*Y72+$H$4*Z72+$I$4*AA72+$J$4*AB72+$K$4*AC72+$L$4*AD72) -> 426 | P72: =IF(O72=$E$8,1,0) -> 0 | Q72: =COUNTIF(S72:AD72,1) -> 6 | S72: 0 | T72: 0 | U72: 1 | V72: 0 | W72: 1 | X72: 1 | Y72: 0 | Z72: 0 | AA72: 1 | AB72: 1 | AC72: 1 | AD72: 0
N73: =$B$8-O73 -> 362 | O73: =($A$4*S73+$B$4*T73+$C$4*U73+$D$4*V73+$E$4*W73+$F$4*X73+$G$4*Y73+$H$4*Z73+$I$4*AA73+$J$4*AB73+$K$4*AC73+$L$4*AD73) -> 366 | P73: =IF(O73=$E$8,1,0) -> 0 | Q73: =COUNTIF(S73:AD73,1) -> 6 | S73: 0 | T73: 1 | U73: 1 | V73: 0 | W73: 0 | X73: 1 | Y73: 1 | Z73: 1 | AA73: 0 | AB73: 0 | AC73: 0 | AD73: 1
N74: =$B$8-O74 -> 387 | O74: =($A$4*S74+$B$4*T74+$C$4*U74+$D$4*V74+$E$4*W74+$F$4*X74+$G$4*Y74+$H$4*Z74+$I$4*AA74+$J$4*AB74+$K$4*AC74+$L$4*AD74) -> 341 | P74: =IF(O74=$E$8,1,0) -> 0 | Q74: =COUNTIF(S74:AD74,1) -> 6 | S74: 0 | T74: 0 | U74: 0 | V74: 1 | W74: 1 | X74: 0 | Y74: 1 | Z74: 1 | AA74: 0 | AB74: 1 | AC74: 0 | AD74: 1
N75: =$B$8-O75 -> 371 | O75: =($A$4*S75+$B$4*T75+$C$4*U75+$D$4*V75+$E$4*W75+$F$4*X75+$G$4*Y75+$H$4*Z75+$I$4*AA75+$J$4*AB75+$K$4*AC75+$L$4*AD75) -> 357 | P75: =IF(O75=$E$8,1,0) -> 0 | Q75: =COUNTIF(S75:AD75,1) -> 6 | S75: 0 | T75: 1 | U75: 0 | V75: 0 | W75: 1 | X75: 1 | Y75: 1 | Z75: 1 | AA75: 0 | AB75: 0 | AC75: 0 | AD75: 1
N76: =$B$8-O76 -> 373 | O76: =($A$4*S76+$B$4*T76+$C$4*U76+$D$4*V76+$E$4*W76+$F$4*X76+$G$4*Y76+$H$4*Z76+$I$4*AA76+$J$4*AB76+$K$4*AC76+$L$4*AD76) -> 355 | P76: =IF(O76=$E$8,1,0) -> 0 | Q76: =COUNTIF(S76:AD76,1) -> 6 | S76: 0 | T76: 1 | U76: 1 | V76: 0 | W76: 0 | X76: 1 | Y76: 1 | Z76: 0 | AA76: 0 | AB76: 1 | AC76: 0 | AD76: 1
N77: =$B$8-O77 -> 332 | O77: =($A$4*S77+$B$4*T77+$C$4*U77+$D$4*V77+$E$4*W77+$F$4*X77+$G$4*Y77+$H$4*Z77+$I$4*AA77+$J$4*AB77+$K$4*AC77+$L$4*AD77) -> 396 | P77: =IF(O77=$E$8,1,0) -> 0 | Q77: =COUNTIF(S77:AD77,1) -> 6 | S77: 0 | T77: 0 | U77: 0 | V77: 0 | W77: 1 | X77: 1 | Y77: 1 | Z77: 0 | AA77: 0 | AB77: 1 | AC77: 1 | AD77: 1
N78: =$B$8-O78 -> 458 | O78: =($A$4*S78+$B$4*T78+$C$4*U78+$D$4*V78+$E$4*W78+$F$4*X78+$G$4*Y78+$H$4*Z78+$I$4*AA78+$J$4*AB78+$K$4*AC78+$L$4*AD78) -> 270 | P78: =IF(O78=$E$8,1,0) -> 0 | Q78: =COUNTIF(S78:AD78,1) -> 6 | S78: 0 | T78: 1 | U78: 0 | V78: 1 | W78: 0 | X78: 1 | Y78: 0 | Z78: 1 | AA78: 0 | AB78: 1 | AC78: 0 | AD78: 1
N79: =$B$8-O79 -> 408 | O79: =($A$4*S79+$B$4*T79+$C$4*U79+$D$4*V79+$E$4*W79+$F$4*X79+$G$4*Y79+$H$4*Z79+$I$4*AA79+$J$4*AB79+$K$4*AC79+$L$4*AD79) -> 320 | P79: =IF(O79=$E$8,1,0) -> 0 | Q79: =COUNTIF(S79:AD79,1) -> 6 | S79: 0 | T79: 1 | U79: 1 | V79: 0 | W79: 1 | X79: 0 | Y79: 0 | Z79: 0 | AA79: 0 | AB79: 1 | AC79: 1 | AD79: 1
N80: =$B$8-O80 -> 358 | O80: =($A$4*S80+$B$4*T80+$C$4*U80+$D$4*V80+$E$4*W80+$F$4*X80+$G$4*Y80+$H$4*Z80+$I$4*AA80+$J$4*AB80+$K$4*AC80+$L$4*AD80) -> 370 | P80: =IF(O80=$E$8,1,0) -> 0 | Q80: =COUNTIF(S80:AD80,1) -> 6 | S80: 0 | T80: 1 | U80: 0 | V80: 0 | W80: 0 | X80: 1 | Y80: 0 | Z80: 1 | AA80: 1 | AB80: 1 | AC80: 1 | AD80: 0
N81: =$B$8-O81 -> 340 | O81: =($A$4*S81+$B$4*T81+$C$4*U81+$D$4*V81+$E$4*W81+$F$4*X81+$G$4*Y81+$H$4*Z81+$I$4*AA81+$J$4*AB81+$K$4*AC81+$L$4*AD81) -> 388 | P81: =IF(O81=$E$8,1,0) -> 0 | Q81: =COUNTIF(S81:AD81,1) -> 6 | S81: 0 | T81: 1 | U81: 0 | V81: 1 | W81: 0 | X81: 1 | Y81: 1 | Z81: 0 | AA81: 1 | AB81: 0 | AC81: 0 | AD81: 1
N82: =$B$8-O82 -> 295 | O82: =($A$4*S82+$B$4*T82+$C$4*U82+$D$4*V82+$E$4*W82+$F$4*X82+$G$4*Y82+$H$4*Z82+$I$4*AA82+$J$4*AB82+$K$4*AC82+$L$4*AD82) -> 433 | P82: =IF(O82=$E$8,1,0) -> 0 | Q82: =COUNTIF(S82:AD82,1) -> 6 | S82: 0 | T82: 0 | U82: 1 | V82: 0 | W82: 1 | X82: 0 | Y82: 1 | Z82: 1 | AA82: 1 | AB82: 1 | AC82: 0 | AD82: 0
N83: =$B$8-O83 -> 369 | O83: =($A$4*S83+$B$4*T83+$C$4*U83+$D$4*V83+$E$4*W83+$F$4*X83+$G$4*Y83+$H$4*Z83+$I$4*AA83+$J$4*AB83+$K$4*AC83+$L$4*AD83) -> 359 | P83: =IF(O83=$E$8,1,0) -> 0 | Q83: =COUNTIF(S83:AD83,1) -> 6 | S83: 0 | T83: 1 | U83: 1 | V83: 0 | W83: 1 | X83: 1 | Y83: 0 | Z83: 0 | AA83: 0 | AB83: 1 | AC83: 1 | AD83: 0
N84: =$B$8-O84 -> 397 | O84: =($A$4*S84+$B$4*T84+$C$4*U84+$D$4*V84+$E$4*W84+$F$4*X84+$G$4*Y84+$H$4*Z84+$I$4*AA84+$J$4*AB84+$K$4*AC84+$L$4*AD84) -> 331 | P84: =IF(O84=$E$8,1,0) -> 0 | Q84: =COUNTIF(S84:AD84,1) -> 6 | S84: 0 | T84: 1 | U84: 0 | V84: 0 | W84: 0 | X84: 0 | Y84: 0 | Z84: 1 | AA84: 1 | AB84: 1 | AC84: 1 | AD84: 1
N85: =$B$8-O85 -> 342 | O85: =($A$4*S85+$B$4*T85+$C$4*U85+$D$4*V85+$E$4*W85+$F$4*X85+$G$4*Y85+$H$4*Z85+$I$4*AA85+$J$4*AB85+$K$4*AC85+$L$4*AD85) -> 386 | P85: =IF(O85=$E$8,1,0) -> 0 | Q85: =COUNTIF(S85:AD85,1) -> 6 | S85: 0 | T85: 1 | U85: 1 | V85: 0 | W85: 1 | X85: 0 | Y85: 0 | Z85: 0 | AA85: 1 | AB85: 1 | AC85: 1 | AD85: 0
N86: =$B$8-O86 -> 332 | O86: =($A$4*S86+$B$4*T86+$C$4*U86+$D$4*V86+$E$4*W86+$F$4*X86+$G$4*Y86+$H$4*Z86+$I$4*AA86+$J$4*AB86+$K$4*AC86+$L$4*AD86) -> 396 | P86: =IF(O86=$E$8,1,0) -> 0 | Q86: =COUNTIF(S86:AD86,1) -> 6 | S86: 0 | T86: 0 | U86: 1 | V86: 1 | W86: 1 | X86: 1 | Y86: 1 | Z86: 0 | AA86: 0 | AB86: 0 | AC86: 0 | AD86: 1
N87: =$B$8-O87 -> 294 | O87: =($A$4*S87+$B$4*T87+$C$4*U87+$D$4*V87+$E$4*W87+$F$4*X87+$G$4*Y87+$H$4*Z87+$I$4*AA87+$J$4*AB87+$K$4*AC87+$L$4*AD87) -> 434 | P87: =IF(O87=$E$8,1,0) -> 0 | Q87: =COUNTIF(S87:AD87,1) -> 6 | S87: 0 | T87: 0 | U87: 1 | V87: 1 | W87: 1 | X87: 1 | Y87: 0 | Z87: 0 | AA87: 1 | AB87: 0 | AC87: 1 | AD87: 0
N88: =$B$8-O88 -> 308 | O88: =($A$4*S88+$B$4*T88+$C$4*U88+$D$4*V88+$E$4*W88+$F$4*X88+$G$4*Y88+$H$4*Z88+$I$4*AA88+$J$4*AB88+$K$4*AC88+$L$4*AD88) -> 420 | P88: =IF(O88=$E$8,1,0) -> 0 | Q88: =COUNTIF(S88:AD88,1) -> 6 | S88: 0 | T88: 0 | U88: 1 | V88: 1 | W88: 0 | X88: 1 | Y88: 1 | Z88: 0 | AA88: 0 | AB88: 1 | AC88: 1 | AD88: 0
N89: =$B$8-O89 -> 380 | O89: =($A$4*S89+$B$4*T89+$C$4*U89+$D$4*V89+$E$4*W89+$F$4*X89+$G$4*Y89+$H$4*Z89+$I$4*AA89+$J$4*AB89+$K$4*AC89+$L$4*AD89) -> 348 | P89: =IF(O89=$E$8,1,0) -> 0 | Q89: =COUNTIF(S89:AD89,1) -> 6 | S89: 0 | T89: 1 | U89: 1 | V89: 0 | W89: 1 | X89: 0 | Y89: 1 | Z89: 0 | AA89: 0 | AB89: 1 | AC89: 0 | AD89: 1
N90: =$B$8-O90 -> 372 | O90: =($A$4*S90+$B$4*T90+$C$4*U90+$D$4*V90+$E$4*W90+$F$4*X90+$G$4*Y90+$H$4*Z90+$I$4*AA90+$J$4*AB90+$K$4*AC90+$L$4*AD90) -> 356 | P90: =IF(O90=$E$8,1,0) -> 0 | Q90: =COUNTIF(S90:AD90,1) -> 6 | S90: 0 | T90: 0 | U90: 1 | V90: 0 | W90: 1 | X90: 0 | Y90: 0 | Z90: 1 | AA90: 1 | AB90: 1 | AC90: 0 | AD90: 1
N91: =$B$8-O91 -> 298 | O91: =($A$4*S91+$B$4*T91+$C$4*U91+$D$4*V91+$E$4*W91+$F$4*X91+$G$4*Y91+$H$4*Z91+$I$4*AA91+$J$4*AB91+$K$4*AC91+$L$4*AD91) -> 430 | P91: =IF(O91=$E$8,1,0) -> 0 | Q91: =COUNTIF(S91:AD91,1) -> 6 | S91: 0 | T91: 0 | U91: 0 | V91: 0 | W91: 0 | X91: 1 | Y91: 1 | Z91: 0 | AA91: 1 | AB91: 1 | AC91: 1 | AD91: 1
N92: =$B$8-O92 -> 410 | O92: =($A$4*S92+$B$4*T92+$C$4*U92+$D$4*V92+$E$4*W92+$F$4*X92+$G$4*Y92+$H$4*Z92+$I$4*AA92+$J$4*AB92+$K$4*AC92+$L$4*AD92) -> 318 | P92: =IF(O92=$E$8,1,0) -> 0 | Q92: =COUNTIF(S92:AD92,1) -> 6 | S92: 0 | T92: 1 | U92: 0 | V92: 1 | W92: 0 | X92: 1 | Y92: 0 | Z92: 0 | AA92: 1 | AB92: 1 | AC92: 0 | AD92: 1
N93: =$B$8-O93 -> 291 | O93: =($A$4*S93+$B$4*T93+$C$4*U93+$D$4*V93+$E$4*W93+$F$4*X93+$G$4*Y93+$H$4*Z93+$I$4*AA93+$J$4*AB93+$K$4*AC93+$L$4*AD93) -> 437 | P93: =IF(O93=$E$8,1,0) -> 0 | Q93: =COUNTIF(S93:AD93,1) -> 6 | S93: 0 | T93: 0 | U93: 1 | V93: 1 | W93: 0 | X93: 1 | Y93: 1 | Z93: 0 | AA93: 1 | AB93: 1 | AC93: 0 | AD93: 0
N94: =$B$8-O94 -> 341 | O94: =($A$4*S94+$B$4*T94+$C$4*U94+$D$4*V94+$E$4*W94+$F$4*X94+$G$4*Y94+$H$4*Z94+$I$4*AA94+$J$4*AB94+$K$4*AC94+$L$4*AD94) -> 387 | P94: =IF(O94=$E$8,1,0) -> 0 | Q94: =COUNTIF(S94:AD94,1) -> 6 | S94: 0 | T94: 1 | U94: 1 | V94: 0 | W94: 1 | X94: 1 | Y94: 1 | Z94: 0 | AA94: 0 | AB94: 1 | AC94: 0 | AD94: 0
N95: =$B$8-O95 -> 328 | O95: =($A$4*S95+$B$4*T95+$C$4*U95+$D$4*V95+$E$4*W95+$F$4*X95+$G$4*Y95+$H$4*Z95+$I$4*AA95+$J$4*AB95+$K$4*AC95+$L$4*AD95) -> 400 | P95: =IF(O95=$E$8,1,0) -> 0 | Q95: =COUNTIF(S95:AD95,1) -> 6 | S95: 0 | T95: 0 | U95: 0 | V95: 1 | W95: 1 | X95: 1 | Y95: 0 | Z95: 0 | AA95: 1 | AB95: 1 | AC95: 1 | AD95: 0
N96: =$B$8-O96 -> 306 | O96: =($A$4*S96+$B$4*T96+$C$4*U96+$D$4*V96+$E$4*W96+$F$4*X96+$G$4*Y96+$H$4*Z96+$I$4*AA96+$J$4*AB96+$K$4*AC96+$L$4*AD96) -> 422 | P96: =IF(O96=$E$8,1,0) -> 0 | Q96: =COUNTIF(S96:AD96,1) -> 6 | S96: 0 | T96: 0 | U96: 0 | V96: 1 | W96: 1 | X96: 1 | Y96: 1 | Z96: 1 | AA96: 0 | AB96: 0 | AC96: 1 | AD96: 0
N97: =$B$8-O97 -> 354 | O97: =($A$4*S97+$B$4*T97+$C$4*U97+$D$4*V97+$E$4*W97+$F$4*X97+$G$4*Y97+$H$4*Z97+$I$4*AA97+$J$4*AB97+$K$4*AC97+$L$4*AD97) -> 374 | P97: =IF(O97=$E$8,1,0) -> 0 | Q97: =COUNTIF(S97:AD97,1) -> 6 | S97: 0 | T97: 0 | U97: 1 | V97: 0 | W97: 0 | X97: 1 | Y97: 1 | Z97: 1 | AA97: 0 | AB97: 1 | AC97: 0 | AD97: 1
N98: =$B$8-O98 -> 339 | O98: =($A$4*S98+$B$4*T98+$C$4*U98+$D$4*V98+$E$4*W98+$F$4*X98+$G$4*Y98+$H$4*Z98+$I$4*AA98+$J$4*AB98+$K$4*AC98+$L$4*AD98) -> 389 | P98: =IF(O98=$E$8,1,0) -> 0 | Q98: =COUNTIF(S98:AD98,1) -> 6 | S98: 0 | T98: 0 | U98: 1 | V98: 1 | W98: 0 | X98: 1 | Y98: 1 | Z98: 1 | AA98: 0 | AB98: 1 | AC98: 0 | AD98: 0
N99: =$B$8-O99 -> 384 | O99: =($A$4*S99+$B$4*T99+$C$4*U99+$D$4*V99+$E$4*W99+$F$4*X99+$G$4*Y99+$H$4*Z99+$I$4*AA99+$J$4*AB99+$K$4*AC99+$L$4*AD99) -> 344 | P99: =IF(O99=$E$8,1,0) -> 0 | Q99: =COUNTIF(S99:AD99,1) -> 6 | S99: 0 | T99: 1 | U99: 1 | V99: 0 | W99: 0 | X99: 1 | Y99: 0 | Z99: 0 | AA99: 1 | AB99: 1 | AC99: 0 | AD99: 1
N100: =$B$8-O100 -> 321 | O100: =($A$4*S100+$B$4*T100+$C$4*U100+$D$4*V100+$E$4*W100+$F$4*X100+$G$4*Y100+$H$4*Z100+$I$4*AA100+$J$4*AB100+$K$4*AC100+$L$4*AD100) -> 407 | P100: =IF(O100=$E$8,1,0) -> 0 | Q100: =COUNTIF(S100:AD100,1) -> 6 | S100: 0 | T100: 0 | U100: 0 | V100: 0 | W100: 1 | X100: 1 | Y100: 1 | Z100: 1 | AA100: 0 | AB100: 0 | AC100: 1 | AD100: 1
N101: =$B$8-O101 -> 324 | O101: =($A$4*S101+$B$4*T101+$C$4*U101+$D$4*V101+$E$4*W101+$F$4*X101+$G$4*Y101+$H$4*Z101+$I$4*AA101+$J$4*AB101+$K$4*AC101+$L$4*AD101) -> 404 | P101: =IF(O101=$E$8,1,0) -> 0 | Q101: =COUNTIF(S101:AD101,1) -> 6 | S101: 0 | T101: 1 | U101: 1 | V101: 0 | W101: 0 | X101: 1 | Y101: 1 | Z101: 0 | AA101: 0 | AB101: 1 | AC101: 1 | AD101: 0
N102: =$B$8-O102 -> 349 | O102: =($A$4*S102+$B$4*T102+$C$4*U102+$D$4*V102+$E$4*W102+$F$4*X102+$G$4*Y102+$H$4*Z102+$I$4*AA102+$J$4*AB102+$K$4*AC102+$L$4*AD102) -> 379 | P102: =IF(O102=$E$8,1,0) -> 0 | Q102: =COUNTIF(S102:AD102,1) -> 6 | S102: 0 | T102: 0 | U102: 0 | V102: 1 | W102: 0 | X102: 1 | Y102: 1 | Z102: 0 | AA102: 0 | AB102: 1 | AC102: 1 | AD102: 1
N103: =$B$8-O103 -> 315 | O103: =($A$4*S103+$B$4*T103+$C$4*U103+$D$4*V103+$E$4*W103+$F$4*X103+$G$4*Y103+$H$4*Z103+$I$4*AA103+$J$4*AB103+$K$4*AC103+$L$4*AD103) -> 413 | P103: =IF(O103=$E$8,1,0) -> 0 | Q103: =COUNTIF(S103:AD103,1) -> 6 | S103: 0 | T103: 0 | U103: 1 | V103: 1 | W103: 0 | X103: 1 | Y103: 1 | Z103: 0 | AA103: 0 | AB103: 0 | AC103: 1 | AD103: 1
N104: =$B$8-O104 -> 313 | O104: =($A$4*S104+$B$4*T104+$C$4*U104+$D$4*V104+$E$4*W104+$F$4*X104+$G$4*Y104+$H$4*Z104+$I$4*AA104+$J$4*AB104+$K$4*AC104+$L$4*AD104) -> 415 | P104: =IF(O104=$E$8,1,0) -> 0 | Q104: =COUNTIF(S104:AD104,1) -> 6 | S104: 0 | T104: 1 | U104: 1 | V104: 0 | W104: 0 | X104: 1 | Y104: 1 | Z104: 1 | AA104: 0 | AB104: 0 | AC104: 1 | AD104: 0
N105: =$B$8-O105 -> 389 | O105: =($A$4*S105+$B$4*T105+$C$4*U105+$D$4*V105+$E$4*W105+$F$4*X105+$G$4*Y105+$H$4*Z105+$I$4*AA105+$J$4*AB105+$K$4*AC105+$L$4*AD105) -> 339 | P105: =IF(O105=$E$8,1,0) -> 0 | Q105: =COUNTIF(S105:AD105,1) -> 6 | S105: 0 | T105: 0 | U105: 1 | V105: 1 | W105: 0 | X105: 0 | Y105: 0 | Z105: 1 | AA105: 1 | AB105: 1 | AC105: 0 | AD105: 1
N106: =$B$8-O106 -> 327 | O106: =($A$4*S106+$B$4*T106+$C$4*U106+$D$4*V106+$E$4*W106+$F$4*X106+$G$4*Y106+$H$4*Z106+$I$4*AA106+$J$4*AB106+$K$4*AC106+$L$4*AD106) -> 401 | P106: =IF(O106=$E$8,1,0) -> 0 | Q106: =COUNTIF(S106:AD106,1) -> 6 | S106: 0 | T106: 0 | U106: 1 | V106: 0 | W106: 0 | X106: 0 | Y106: 1 | Z106: 1 | AA106: 1 | AB106: 1 | AC106: 0 | AD106: 1
N107: =$B$8-O107 -> 372 | O107: =($A$4*S107+$B$4*T107+$C$4*U107+$D$4*V107+$E$4*W107+$F$4*X107+$G$4*Y107+$H$4*Z107+$I$4*AA107+$J$4*AB107+$K$4*AC107+$L$4*AD107) -> 356 | P107: =IF(O107=$E$8,1,0) -> 0 | Q107: =COUNTIF(S107:AD107,1) -> 6 | S107: 0 | T107: 1 | U107: 0 | V107: 0 | W107: 1 | X107: 0 | Y107: 1 | Z107: 0 | AA107: 0 | AB107: 1 | AC107: 1 | AD107: 1
N108: =$B$8-O108 -> 320 | O108: =($A$4*S108+$B$4*T108+$C$4*U108+$D$4*V108+$E$4*W108+$F$4*X108+$G$4*Y108+$H$4*Z108+$I$4*AA108+$J$4*AB108+$K$4*AC108+$L$4*AD108) -> 408 | P108: =IF(O108=$E$8,1,0) -> 0 | Q108: =COUNTIF(S108:AD108,1) -> 6 | S108: 0 | T108: 1 | U108: 1 | V108: 1 | W108: 0 | X108: 0 | Y108: 1 | Z108: 1 | AA108: 1 | AB108: 0 | AC108: 0 | AD108: 0
N109: =$B$8-O109 -> 434 | O109: =($A$4*S109+$B$4*T109+$C$4*U109+$D$4*V109+$E$4*W109+$F$4*X109+$G$4*Y109+$H$4*Z109+$I$4*AA109+$J$4*AB109+$K$4*AC109+$L$4*AD109) -> 294 | P109: =IF(O109=$E$8,1,0) -> 0 | Q109: =COUNTIF(S109:AD109,1) -> 6 | S109: 0 | T109: 1 | U109: 0 | V109: 1 | W109: 1 | X109: 0 | Y109: 0 | Z109: 0 | AA109: 0 | AB109: 1 | AC109: 1 | AD109: 1
N110: =$B$8-O110 -> 390 | O110: =($A$4*S110+$B$4*T110+$C$4*U110+$D$4*V110+$E$4*W110+$F$4*X110+$G$4*Y110+$H$4*Z110+$I$4*AA110+$J$4*AB110+$K$4*AC110+$L$4*AD110) -> 338 | P110: =IF(O110=$E$8,1,0) -> 0 | Q110: =COUNTIF(S110:AD110,1) -> 6 | S110: 0 | T110: 1 | U110: 1 | V110: 0 | W110: 1 | X110: 0 | Y110: 0 | Z110: 1 | AA110: 0 | AB110: 1 | AC110: 1 | AD110: 0
N111: =$B$8-O111 -> 290 | O111: =($A$4*S111+$B$4*T111+$C$4*U111+$D$4*V111+$E$4*W111+$F$4*X111+$G$4*Y111+$H$4*Z111+$I$4*AA111+$J$4*AB111+$K$4*AC111+$L$4*AD111) -> 438 | P111: =IF(O111=$E$8,1,0) -> 0 | Q111: =COUNTIF(S111:AD111,1) -> 6 | S111: 0 | T111: 0 | U111: 0 | V111: 1 | W111: 1 | X111: 0 | Y111: 1 | Z111: 0 | AA111: 1 | AB111: 1 | AC111: 1 | AD111: 0
N112: =$B$8-O112 -> 399 | O112: =($A$4*S112+$B$4*T112+$C$4*U112+$D$4*V112+$E$4*W112+$F$4*X112+$G$4*Y112+$H$4*Z112+$I$4*AA112+$J$4*AB112+$K$4*AC112+$L$4*AD112) -> 329 | P112: =IF(O112=$E$8,1,0) -> 0 | Q112: =COUNTIF(S112:AD112,1) -> 6 | S112: 0 | T112: 1 | U112: 0 | V112: 1 | W112: 1 | X112: 0 | Y112: 0 | Z112: 1 | AA112: 1 | AB112: 1 | AC112: 0 | AD112: 0
N113: =$B$8-O113 -> 372 | O113: =($A$4*S113+$B$4*T113+$C$4*U113+$D$4*V113+$E$4*W113+$F$4*X113+$G$4*Y113+$H$4*Z113+$I$4*AA113+$J$4*AB113+$K$4*AC113+$L$4*AD113) -> 356 | P113: =IF(O113=$E$8,1,0) -> 0 | Q113: =COUNTIF(S113:AD113,1) -> 6 | S113: 0 | T113: 1 | U113: 1 | V113: 1 | W113: 1 | X113: 0 | Y113: 1 | Z113: 0 | AA113: 0 | AB113: 0 | AC113: 0 | AD113: 1
N114: =$B$8-O114 -> 322 | O114: =($A$4*S114+$B$4*T114+$C$4*U114+$D$4*V114+$E$4*W114+$F$4*X114+$G$4*Y114+$H$4*Z114+$I$4*AA114+$J$4*AB114+$K$4*AC114+$L$4*AD114) -> 406 | P114: =IF(O114=$E$8,1,0) -> 0 | Q114: =COUNTIF(S114:AD114,1) -> 6 | S114: 0 | T114: 0 | U114: 1 | V114: 0 | W114: 1 | X114: 1 | Y114: 1 | Z114: 1 | AA114: 0 | AB114: 1 | AC114: 0 | AD114: 0
N115: =$B$8-O115 -> 386 | O115: =($A$4*S115+$B$4*T115+$C$4*U115+$D$4*V115+$E$4*W115+$F$4*X115+$G$4*Y115+$H$4*Z115+$I$4*AA115+$J$4*AB115+$K$4*AC115+$L$4*AD115) -> 342 | P115: =IF(O115=$E$8,1,0) -> 0 | Q115: =COUNTIF(S115:AD115,1) -> 6 | S115: 0 | T115: 1 | U115: 1 | V115: 1 | W115: 0 | X115: 0 | Y115: 1 | Z115: 1 | AA115: 0 | AB115: 0 | AC115: 0 | AD115: 1
N116: =$B$8-O116 -> 330 | O116: =($A$4*S116+$B$4*T116+$C$4*U116+$D$4*V116+$E$4*W116+$F$4*X116+$G$4*Y116+$H$4*Z116+$I$4*AA116+$J$4*AB116+$K$4*AC116+$L$4*AD116) -> 398 | P116: =IF(O116=$E$8,1,0) -> 0 | Q116: =COUNTIF(S116:AD116,1) -> 6 | S116: 0 | T116: 1 | U116: 0 | V116: 0 | W116: 0 | X116: 1 | Y116: 1 | Z116: 1 | AA116: 1 | AB116: 1 | AC116: 0 | AD116: 0
N117: =$B$8-O117 -> 369 | O117: =($A$4*S117+$B$4*T117+$C$4*U117+$D$4*V117+$E$4*W117+$F$4*X117+$G$4*Y117+$H$4*Z117+$I$4*AA117+$J$4*AB117+$K$4*AC117+$L$4*AD117) -> 359 | P117: =IF(O117=$E$8,1,0) -> 0 | Q117: =COUNTIF(S117:AD117,1) -> 6 | S117: 0 | T117: 1 | U117: 1 | V117: 1 | W117: 0 | X117: 1 | Y117: 0 | Z117: 0 | AA117: 1 | AB117: 1 | AC117: 0 | AD117: 0
N118: =$B$8-O118 -> 340 | O118: =($A$4*S118+$B$4*T118+$C$4*U118+$D$4*V118+$E$4*W118+$F$4*X118+$G$4*Y118+$H$4*Z118+$I$4*AA118+$J$4*AB118+$K$4*AC118+$L$4*AD118) -> 388 | P118: =IF(O118=$E$8,1,0) -> 0 | Q118: =COUNTIF(S118:AD118,1) -> 6 | S118: 0 | T118: 0 | U118: 1 | V118: 1 | W118: 0 | X118: 0 | Y118: 0 | Z118: 1 | AA118: 1 | AB118: 1 | AC118: 1 | AD118: 0
N119: =$B$8-O119 -> 333 | O119: =($A$4*S119+$B$4*T119+$C$4*U119+$D$4*V119+$E$4*W119+$F$4*X119+$G$4*Y119+$H$4*Z119+$I$4*AA119+$J$4*AB119+$K$4*AC119+$L$4*AD119) -> 395 | P119: =IF(O119=$E$8,1,0) -> 0 | Q119: =COUNTIF(S119:AD119,1) -> 6 | S119: 0 | T119: 0 | U119: 1 | V119: 0 | W119: 1 | X119: 1 | Y119: 0 | Z119: 1 | AA119: 1 | AB119: 1 | AC119: 0 | AD119: 0
N120: =$B$8-O120 -> 393 | O120: =($A$4*S120+$B$4*T120+$C$4*U120+$D$4*V120+$E$4*W120+$F$4*X120+$G$4*Y120+$H$4*Z120+$I$4*AA120+$J$4*AB120+$K$4*AC120+$L$4*AD120) -> 335 | P120: =IF(O120=$E$8,1,0) -> 0 | Q120: =COUNTIF(S120:AD120,1) -> 6 | S120: 0 | T120: 1 | U120: 0 | V120: 0 | W120: 1 | X120: 1 | Y120: 0 | Z120: 0 | AA120: 1 | AB120: 1 | AC120: 0 | AD120: 1
N121: =$B$8-O121 -> 378 | O121: =($A$4*S121+$B$4*T121+$C$4*U121+$D$4*V121+$E$4*W121+$F$4*X121+$G$4*Y121+$H$4*Z121+$I$4*AA121+$J$4*AB121+$K$4*AC121+$L$4*AD121) -> 350 | P121: =IF(O121=$E$8,1,0) -> 0 | Q121: =COUNTIF(S121:AD121,1) -> 6 | S121: 0 | T121: 1 | U121: 0 | V121: 1 | W121: 0 | X121: 0 | Y121: 1 | Z121: 1 | AA121: 0 | AB121: 0 | AC121: 1 | AD121: 1
N122: =$B$8-O122 -> 339 | O122: =($A$4*S122+$B$4*T122+$C$4*U122+$D$4*V122+$E$4*W122+$F$4*X122+$G$4*Y122+$H$4*Z122+$I$4*AA122+$J$4*AB122+$K$4*AC122+$L$4*AD122) -> 389 | P122: =IF(O122=$E$8,1,0) -> 0 | Q122: =COUNTIF(S122:AD122,1) -> 6 | S122: 0 | T122: 0 | U122: 0 | V122: 1 | W122: 1 | X122: 0 | Y122: 1 | Z122: 0 | AA122: 1 | AB122: 1 | AC122: 0 | AD122: 1
N123: =$B$8-O123 -> 395 | O123: =($A$4*S123+$B$4*T123+$C$4*U123+$D$4*V123+$E$4*W123+$F$4*X123+$G$4*Y123+$H$4*Z123+$I$4*AA123+$J$4*AB123+$K$4*AC123+$L$4*AD123) -> 333 | P123: =IF(O123=$E$8,1,0) -> 0 | Q123: =COUNTIF(S123:AD123,1) -> 6 | S123: 0 | T123: 1 | U123: 0 | V123: 1 | W123: 1 | X123: 0 | Y123: 1 | Z123: 1 | AA123: 0 | AB123: 0 | AC123: 0 | AD123: 1
N124: =$B$8-O124 -> 337 | O124: =($A$4*S124+$B$4*T124+$C$4*U124+$D$4*V124+$E$4*W124+$F$4*X124+$G$4*Y124+$H$4*Z124+$I$4*AA124+$J$4*AB124+$K$4*AC124+$L$4*AD124) -> 391 | P124: =IF(O124=$E$8,1,0) -> 0 | Q124: =COUNTIF(S124:AD124,1) -> 6 | S124: 0 | T124: 1 | U124: 0 | V124: 0 | W124: 1 | X124: 0 | Y124: 1 | Z124: 1 | AA124: 1 | AB124: 1 | AC124: 0 | AD124: 0
N125: =$B$8-O125 -> 331 | O125: =($A$4*S125+$B$4*T125+$C$4*U125+$D$4*V125+$E$4*W125+$F$4*X125+$G$4*Y125+$H$4*Z125+$I$4*AA125+$J$4*AB125+$K$4*AC125+$L$4*AD125) -> 397 | P125: =IF(O125=$E$8,1,0) -> 0 | Q125: =COUNTIF(S125:AD125,1) -> 6 | S125: 0 | T125: 1 | U125: 1 | V125: 0 | W125: 1 | X125: 0 | Y125: 1 | Z125: 0 | AA125: 0 | AB125: 1 | AC125: 1 | AD125: 0
N126: =$B$8-O126 -> 402 | O126: =($A$4*S126+$B$4*T126+$C$4*U126+$D$4*V126+$E$4*W126+$F$4*X126+$G$4*Y126+$H$4*Z126+$I$4*AA126+$J$4*AB126+$K$4*AC126+$L$4*AD126) -> 326 | P126: =IF(O126=$E$8,1,0) -> 0 | Q126: =COUNTIF(S126:AD126,1) -> 6 | S126: 0 | T126: 1 | U126: 0 | V126: 1 | W126: 1 | X126: 1 | Y126: 0 | Z126: 0 | AA126: 0 | AB126: 0 | AC126: 1 | AD126: 1
N127: =$B$8-O127 -> 333 | O127: =($A$4*S127+$B$4*T127+$C$4*U127+$D$4*V127+$E$4*W127+$F$4*X127+$G$4*Y127+$H$4*Z127+$I$4*AA127+$J$4*AB127+$K$4*AC127+$L$4*AD127) -> 395 | P127: =IF(O127=$E$8,1,0) -> 0 | Q127: =COUNTIF(S127:AD127,1) -> 6 | S127: 0 | T127: 1 | U127: 0 | V127: 0 | W127: 1 | X127: 1 | Y127: 0 | Z127: 1 | AA127: 1 | AB127: 0 | AC127: 1 | AD127: 0
N128: =$B$8-O128 -> 359 | O128: =($A$4*S128+$B$4*T128+$C$4*U128+$D$4*V128+$E$4*W128+$F$4*X128+$G$4*Y128+$H$4*Z128+$I$4*AA128+$J$4*AB128+$K$4*AC128+$L$4*AD128) -> 369 | P128: =IF(O128=$E$8,1,0) -> 0 | Q128: =COUNTIF(S128:AD128,1) -> 6 | S128: 0 | T128: 0 | U128: 0 | V128: 1 | W128: 1 | X128: 1 | Y128: 0 | Z128: 1 | AA128: 1 | AB128: 1 | AC128: 0 | AD128: 0
N129: =$B$8-O129 -> 399 | O129: =($A$4*S129+$B$4*T129+$C$4*U129+$D$4*V129+$E$4*W129+$F$4*X129+$G$4*Y129+$H$4*Z129+$I$4*AA129+$J$4*AB129+$K$4*AC129+$L$4*AD129) -> 329 | P129: =IF(O129=$E$8,1,0) -> 0 | Q129: =COUNTIF(S129:AD129,1) -> 6 | S129: 0 | T129: 0 | U129: 1 | V129: 0 | W129: 1 | X129: 1 | Y129: 0 | Z129: 1 | AA129: 0 | AB129: 1 | AC129: 0 | AD129: 1
N130: =$B$8-O130 -> 349 | O130: =($A$4*S130+$B$4*T130+$C$4*U130+$D$4*V130+$E$4*W130+$F$4*X130+$G$4*Y130+$H$4*Z130+$I$4*AA130+$J$4*AB130+$K$4*AC130+$L$4*AD130) -> 379 | P130: =IF(O130=$E$8,1,0) -> 0 | Q130: =COUNTIF(S130:AD130,1) -> 6 | S130: 0 | T130: 0 | U130: 0 | V130: 1 | W130: 0 | X130: 1 | Y130: 0 | Z130: 1 | AA130: 1 | AB130: 0 | AC130: 1 | AD130: 1
N131: =$B$8-O131 -> 363 | O131: =($A$4*S131+$B$4*T131+$C$4*U131+$D$4*V131+$E$4*W131+$F$4*X131+$G$4*Y131+$H$4*Z131+$I$4*AA131+$J$4*AB131+$K$4*AC131+$L$4*AD131) -> 365 | P131: =IF(O131=$E$8,1,0) -> 0 | Q131: =COUNTIF(S131:AD131,1) -> 6 | S131: 0 | T131: 1 | U131: 1 | V131: 0 | W131: 0 | X131: 0 | Y131: 1 | Z131: 0 | AA131: 0 | AB131: 1 | AC131: 1 | AD131: 1
N132: =$B$8-O132 -> 403 | O132: =($A$4*S132+$B$4*T132+$C$4*U132+$D$4*V132+$E$4*W132+$F$4*X132+$G$4*Y132+$H$4*Z132+$I$4*AA132+$J$4*AB132+$K$4*AC132+$L$4*AD132) -> 325 | P132: =IF(O132=$E$8,1,0) -> 0 | Q132: =COUNTIF(S132:AD132,1) -> 6 | S132: 0 | T132: 1 | U132: 1 | V132: 1 | W132: 1 | X132: 1 | Y132: 0 | Z132: 0 | AA132: 0 | AB132: 1 | AC132: 0 | AD132: 0
N133: =$B$8-O133 -> 287 | O133: =($A$4*S133+$B$4*T133+$C$4*U133+$D$4*V133+$E$4*W133+$F$4*X133+$G$4*Y133+$H$4*Z133+$I$4*AA133+$J$4*AB133+$K$4*AC133+$L$4*AD133) -> 441 | P133: =IF(O133=$E$8,1,0) -> 0 | Q133: =COUNTIF(S133:AD133,1) -> 6 | S133: 0 | T133: 0 | U133: 0 | V133: 0 | W133: 0 | X133: 1 | Y133: 1 | Z133: 1 | AA133: 1 | AB133: 0 | AC133: 1 | AD133: 1
N134: =$B$8-O134 -> 338 | O134: =($A$4*S134+$B$4*T134+$C$4*U134+$D$4*V134+$E$4*W134+$F$4*X134+$G$4*Y134+$H$4*Z134+$I$4*AA134+$J$4*AB134+$K$4*AC134+$L$4*AD134) -> 390 | P134: =IF(O134=$E$8,1,0) -> 0 | Q134: =COUNTIF(S134:AD134,1) -> 6 | S134: 0 | T134: 1 | U134: 1 | V134: 1 | W134: 0 | X134: 0 | Y134: 1 | Z134: 0 | AA134: 1 | AB134: 0 | AC134: 0 | AD134: 1
N135: =$B$8-O135 -> 371 | O135: =($A$4*S135+$B$4*T135+$C$4*U135+$D$4*V135+$E$4*W135+$F$4*X135+$G$4*Y135+$H$4*Z135+$I$4*AA135+$J$4*AB135+$K$4*AC135+$L$4*AD135) -> 357 | P135: =IF(O135=$E$8,1,0) -> 0 | Q135: =COUNTIF(S135:AD135,1) -> 6 | S135: 0 | T135: 1 | U135: 0 | V135: 1 | W135: 0 | X135: 0 | Y135: 1 | Z135: 1 | AA135: 0 | AB135: 1 | AC135: 1 | AD135: 0
N136: =$B$8-O136 -> 382 | O136: =($A$4*S136+$B$4*T136+$C$4*U136+$D$4*V136+$E$4*W136+$F$4*X136+$G$4*Y136+$H$4*Z136+$I$4*AA136+$J$4*AB136+$K$4*AC136+$L$4*AD136) -> 346 | P136: =IF(O136=$E$8,1,0) -> 0 | Q136: =COUNTIF(S136:AD136,1) -> 6 | S136: 0 | T136: 1 | U136: 0 | V136: 0 | W136: 1 | X136: 1 | Y136: 1 | Z136: 0 | AA136: 0 | AB136: 1 | AC136: 0 | AD136: 1
N137: =$B$8-O137 -> 415 | O137: =($A$4*S137+$B$4*T137+$C$4*U137+$D$4*V137+$E$4*W137+$F$4*X137+$G$4*Y137+$H$4*Z137+$I$4*AA137+$J$4*AB137+$K$4*AC137+$L$4*AD137) -> 313 | P137: =IF(O137=$E$8,1,0) -> 0 | Q137: =COUNTIF(S137:AD137,1) -> 6 | S137: 0 | T137: 0 | U137: 0 | V137: 1 | W137: 1 | X137: 0 | Y137: 0 | Z137: 1 | AA137: 0 | AB137: 1 | AC137: 1 | AD137: 1
N138: =$B$8-O138 -> 287 | O138: =($A$4*S138+$B$4*T138+$C$4*U138+$D$4*V138+$E$4*W138+$F$4*X138+$G$4*Y138+$H$4*Z138+$I$4*AA138+$J$4*AB138+$K$4*AC138+$L$4*AD138) -> 441 | P138: =IF(O138=$E$8,1,0) -> 0 | Q138: =COUNTIF(S138:AD138,1) -> 6 | S138: 0 | T138: 0 | U138: 1 | V138: 1 | W138: 1 | X138: 0 | Y138: 1 | Z138: 1 | AA138: 1 | AB138: 0 | AC138: 0 | AD138: 0
N139: =$B$8-O139 -> 344 | O139: =($A$4*S139+$B$4*T139+$C$4*U139+$D$4*V139+$E$4*W139+$F$4*X139+$G$4*Y139+$H$4*Z139+$I$4*AA139+$J$4*AB139+$K$4*AC139+$L$4*AD139) -> 384 | P139: =IF(O139=$E$8,1,0) -> 0 | Q139: =COUNTIF(S139:AD139,1) -> 6 | S139: 0 | T139: 1 | U139: 0 | V139: 0 | W139: 1 | X139: 0 | Y139: 1 | Z139: 1 | AA139: 1 | AB139: 0 | AC139: 0 | AD139: 1
N140: =$B$8-O140 -> 338 | O140: =($A$4*S140+$B$4*T140+$C$4*U140+$D$4*V140+$E$4*W140+$F$4*X140+$G$4*Y140+$H$4*Z140+$I$4*AA140+$J$4*AB140+$K$4*AC140+$L$4*AD140) -> 390 | P140: =IF(O140=$E$8,1,0) -> 0 | Q140: =COUNTIF(S140:AD140,1) -> 6 | S140: 0 | T140: 1 | U140: 1 | V140: 0 | W140: 1 | X140: 0 | Y140: 1 | Z140: 0 | AA140: 0 | AB140: 0 | AC140: 1 | AD140: 1
N141: =$B$8-O141 -> 374 | O141: =($A$4*S141+$B$4*T141+$C$4*U141+$D$4*V141+$E$4*W141+$F$4*X141+$G$4*Y141+$H$4*Z141+$I$4*AA141+$J$4*AB141+$K$4*AC141+$L$4*AD141) -> 354 | P141: =IF(O141=$E$8,1,0) -> 0 | Q141: =COUNTIF(S141:AD141,1) -> 6 | S141: 0 | T141: 0 | U141: 1 | V141: 1 | W141: 1 | X141: 0 | Y141: 0 | Z141: 1 | AA141: 0 | AB141: 1 | AC141: 1 | AD141: 0
N142: =$B$8-O142 -> 286 | O142: =($A$4*S142+$B$4*T142+$C$4*U142+$D$4*V142+$E$4*W142+$F$4*X142+$G$4*Y142+$H$4*Z142+$I$4*AA142+$J$4*AB142+$K$4*AC142+$L$4*AD142) -> 442 | P142: =IF(O142=$E$8,1,0) -> 0 | Q142: =COUNTIF(S142:AD142,1) -> 6 | S142: 0 | T142: 1 | U142: 1 | V142: 0 | W142: 0 | X142: 0 | Y142: 1 | Z142: 1 | AA142: 1 | AB142: 0 | AC142: 1 | AD142: 0
N143: =$B$8-O143 -> 315 | O143: =($A$4*S143+$B$4*T143+$C$4*U143+$D$4*V143+$E$4*W143+$F$4*X143+$G$4*Y143+$H$4*Z143+$I$4*AA143+$J$4*AB143+$K$4*AC143+$L$4*AD143) -> 413 | P143: =IF(O143=$E$8,1,0) -> 0 | Q143: =COUNTIF(S143:AD143,1) -> 6 | S143: 0 | T143: 0 | U143: 1 | V143: 1 | W143: 1 | X143: 0 | Y143: 1 | Z143: 0 | AA143: 0 | AB143: 1 | AC143: 1 | AD143: 0
N144: =$B$8-O144 -> 418 | O144: =($A$4*S144+$B$4*T144+$C$4*U144+$D$4*V144+$E$4*W144+$F$4*X144+$G$4*Y144+$H$4*Z144+$I$4*AA144+$J$4*AB144+$K$4*AC144+$L$4*AD144) -> 310 | P144: =IF(O144=$E$8,1,0) -> 0 | Q144: =COUNTIF(S144:AD144,1) -> 6 | S144: 0 | T144: 1 | U144: 1 | V144: 0 | W144: 1 | X144: 1 | Y144: 0 | Z144: 0 | AA144: 0 | AB144: 1 | AC144: 0 | AD144: 1
N145: =$B$8-O145 -> 397 | O145: =($A$4*S145+$B$4*T145+$C$4*U145+$D$4*V145+$E$4*W145+$F$4*X145+$G$4*Y145+$H$4*Z145+$I$4*AA145+$J$4*AB145+$K$4*AC145+$L$4*AD145) -> 331 | P145: =IF(O145=$E$8,1,0) -> 0 | Q145: =COUNTIF(S145:AD145,1) -> 6 | S145: 0 | T145: 1 | U145: 1 | V145: 0 | W145: 1 | X145: 0 | Y145: 0 | Z145: 1 | AA145: 0 | AB145: 0 | AC145: 1 | AD145: 1
N146: =$B$8-O146 -> 358 | O146: =($A$4*S146+$B$4*T146+$C$4*U146+$D$4*V146+$E$4*W146+$F$4*X146+$G$4*Y146+$H$4*Z146+$I$4*AA146+$J$4*AB146+$K$4*AC146+$L$4*AD146) -> 370 | P146: =IF(O146=$E$8,1,0) -> 0 | Q146: =COUNTIF(S146:AD146,1) -> 6 | S146: 0 | T146: 1 | U146: 1 | V146: 1 | W146: 0 | X146: 1 | Y146: 1 | Z146: 0 | AA146: 0 | AB146: 1 | AC146: 0 | AD146: 0
N147: =$B$8-O147 -> 325 | O147: =($A$4*S147+$B$4*T147+$C$4*U147+$D$4*V147+$E$4*W147+$F$4*X147+$G$4*Y147+$H$4*Z147+$I$4*AA147+$J$4*AB147+$K$4*AC147+$L$4*AD147) -> 403 | P147: =IF(O147=$E$8,1,0) -> 0 | Q147: =COUNTIF(S147:AD147,1) -> 6 | S147: 0 | T147: 0 | U147: 1 | V147: 1 | W147: 1 | X147: 1 | Y147: 1 | Z147: 0 | AA147: 0 | AB147: 1 | AC147: 0 | AD147: 0
N148: =$B$8-O148 -> 278 | O148: =($A$4*S148+$B$4*T148+$C$4*U148+$D$4*V148+$E$4*W148+$F$4*X148+$G$4*Y148+$H$4*Z148+$I$4*AA148+$J$4*AB148+$K$4*AC148+$L$4*AD148) -> 450 | P148: =IF(O148=$E$8,1,0) -> 0 | Q148: =COUNTIF(S148:AD148,1) -> 6 | S148: 0 | T148: 0 | U148: 1 | V148: 0 | W148: 0 | X148: 0 | Y148: 1 | Z148: 1 | AA148: 1 | AB148: 1 | AC148: 1 | AD148: 0
N149: =$B$8-O149 -> 357 | O149: =($A$4*S149+$B$4*T149+$C$4*U149+$D$4*V149+$E$4*W149+$F$4*X149+$G$4*Y149+$H$4*Z149+$I$4*AA149+$J$4*AB149+$K$4*AC149+$L$4*AD149) -> 371 | P149: =IF(O149=$E$8,1,0) -> 0 | Q149: =COUNTIF(S149:AD149,1) -> 6 | S149: 0 | T149: 1 | U149: 0 | V149: 1 | W149: 0 | X149: 1 | Y149: 1 | Z149: 0 | AA149: 0 | AB149: 0 | AC149: 1 | AD149: 1
N150: =$B$8-O150 -> 448 | O150: =($A$4*S150+$B$4*T150+$C$4*U150+$D$4*V150+$E$4*W150+$F$4*X150+$G$4*Y150+$H$4*Z150+$I$4*AA150+$J$4*AB150+$K$4*AC150+$L$4*AD150) -> 280 | P150: =IF(O150=$E$8,1,0) -> 0 | Q150: =COUNTIF(S150:AD150,1) -> 6 | S150: 0 | T150: 1 | U150: 0 | V150: 1 | W150: 0 | X150: 0 | Y150: 0 | Z150: 1 | AA150: 0 | AB150: 1 | AC150: 1 | AD150: 1
N151: =$B$8-O151 -> 354 | O151: =($A$4*S151+$B$4*T151+$C$4*U151+$D$4*V151+$E$4*W151+$F$4*X151+$G$4*Y151+$H$4*Z151+$I$4*AA151+$J$4*AB151+$K$4*AC151+$L$4*AD151) -> 374 | P151: =IF(O151=$E$8,1,0) -> 0 | Q151: =COUNTIF(S151:AD151,1) -> 6 | S151: 0 | T151: 1 | U151: 0 | V151: 0 | W151: 0 | X151: 1 | Y151: 1 | Z151: 1 | AA151: 0 | AB151: 0 | AC151: 1 | AD151: 1
N152: =$B$8-O152 -> 359 | O152: =($A$4*S152+$B$4*T152+$C$4*U152+$D$4*V152+$E$4*W152+$F$4*X152+$G$4*Y152+$H$4*Z152+$I$4*AA152+$J$4*AB152+$K$4*AC152+$L$4*AD152) -> 369 | P152: =IF(O152=$E$8,1,0) -> 0 | Q152: =COUNTIF(S152:AD152,1) -> 6 | S152: 0 | T152: 1 | U152: 1 | V152: 1 | W152: 0 | X152: 0 | Y152: 0 | Z152: 0 | AA152: 1 | AB152: 1 | AC152: 1 | AD152: 0
N153: =$B$8-O153 -> 283 | O153: =($A$4*S153+$B$4*T153+$C$4*U153+$D$4*V153+$E$4*W153+$F$4*X153+$G$4*Y153+$H$4*Z153+$I$4*AA153+$J$4*AB153+$K$4*AC153+$L$4*AD153) -> 445 | P153: =IF(O153=$E$8,1,0) -> 0 | Q153: =COUNTIF(S153:AD153,1) -> 6 | S153: 0 | T153: 0 | U153: 1 | V153: 1 | W153: 1 | X153: 1 | Y153: 1 | Z153: 0 | AA153: 0 | AB153: 0 | AC153: 1 | AD153: 0
N154: =$B$8-O154 -> 414 | O154: =($A$4*S154+$B$4*T154+$C$4*U154+$D$4*V154+$E$4*W154+$F$4*X154+$G$4*Y154+$H$4*Z154+$I$4*AA154+$J$4*AB154+$K$4*AC154+$L$4*AD154) -> 314 | P154: =IF(O154=$E$8,1,0) -> 0 | Q154: =COUNTIF(S154:AD154,1) -> 6 | S154: 0 | T154: 1 | U154: 1 | V154: 1 | W154: 0 | X154: 0 | Y154: 0 | Z154: 1 | AA154: 0 | AB154: 0 | AC154: 1 | AD154: 1
N155: =$B$8-O155 -> 319 | O155: =($A$4*S155+$B$4*T155+$C$4*U155+$D$4*V155+$E$4*W155+$F$4*X155+$G$4*Y155+$H$4*Z155+$I$4*AA155+$J$4*AB155+$K$4*AC155+$L$4*AD155) -> 409 | P155: =IF(O155=$E$8,1,0) -> 0 | Q155: =COUNTIF(S155:AD155,1) -> 6 | S155: 0 | T155: 0 | U155: 1 | V155: 1 | W155: 0 | X155: 1 | Y155: 0 | Z155: 0 | AA155: 1 | AB155: 1 | AC155: 1 | AD155: 0
N156: =$B$8-O156 -> 298 | O156: =($A$4*S156+$B$4*T156+$C$4*U156+$D$4*V156+$E$4*W156+$F$4*X156+$G$4*Y156+$H$4*Z156+$I$4*AA156+$J$4*AB156+$K$4*AC156+$L$4*AD156) -> 430 | P156: =IF(O156=$E$8,1,0) -> 0 | Q156: =COUNTIF(S156:AD156,1) -> 6 | S156: 0 | T156: 0 | U156: 1 | V156: 0 | W156: 1 | X156: 1 | Y156: 1 | Z156: 0 | AA156: 0 | AB156: 0 | AC156: 1 | AD156: 1
N157: =$B$8-O157 -> 407 | O157: =($A$4*S157+$B$4*T157+$C$4*U157+$D$4*V157+$E$4*W157+$F$4*X157+$G$4*Y157+$H$4*Z157+$I$4*AA157+$J$4*AB157+$K$4*AC157+$L$4*AD157) -> 321 | P157: =IF(O157=$E$8,1,0) -> 0 | Q157: =COUNTIF(S157:AD157,1) -> 6 | S157: 0 | T157: 1 | U157: 1 | V157: 1 | W157: 0 | X157: 0 | Y157: 0 | Z157: 1 | AA157: 0 | AB157: 1 | AC157: 1 | AD157: 0
N158: =$B$8-O158 -> 388 | O158: =($A$4*S158+$B$4*T158+$C$4*U158+$D$4*V158+$E$4*W158+$F$4*X158+$G$4*Y158+$H$4*Z158+$I$4*AA158+$J$4*AB158+$K$4*AC158+$L$4*AD158) -> 340 | P158: =IF(O158=$E$8,1,0) -> 0 | Q158: =COUNTIF(S158:AD158,1) -> 6 | S158: 0 | T158: 1 | U158: 0 | V158: 1 | W158: 1 | X158: 0 | Y158: 1 | Z158: 1 | AA158: 0 | AB158: 1 | AC158: 0 | AD158: 0
N159: =$B$8-O159 -> 317 | O159: =($A$4*S159+$B$4*T159+$C$4*U159+$D$4*V159+$E$4*W159+$F$4*X159+$G$4*Y159+$H$4*Z159+$I$4*AA159+$J$4*AB159+$K$4*AC159+$L$4*AD159) -> 411 | P159: =IF(O159=$E$8,1,0) -> 0 | Q159: =COUNTIF(S159:AD159,1) -> 6 | S159: 0 | T159: 0 | U159: 0 | V159: 1 | W159: 1 | X159: 1 | Y159: 0 | Z159: 1 | AA159: 1 | AB159: 0 | AC159: 1 | AD159: 0
N160: =$B$8-O160 -> 392 | O160: =($A$4*S160+$B$4*T160+$C$4*U160+$D$4*V160+$E$4*W160+$F$4*X160+$G$4*Y160+$H$4*Z160+$I$4*AA160+$J$4*AB160+$K$4*AC160+$L$4*AD160) -> 336 | P160: =IF(O160=$E$8,1,0) -> 0 | Q160: =COUNTIF(S160:AD160,1) -> 6 | S160: 0 | T160: 0 | U160: 1 | V160: 1 | W160: 1 | X160: 0 | Y160: 0 | Z160: 0 | AA160: 0 | AB160: 1 | AC160: 1 | AD160: 1
N161: =$B$8-O161 -> 308 | O161: =($A$4*S161+$B$4*T161+$C$4*U161+$D$4*V161+$E$4*W161+$F$4*X161+$G$4*Y161+$H$4*Z161+$I$4*AA161+$J$4*AB161+$K$4*AC161+$L$4*AD161) -> 420 | P161: =IF(O161=$E$8,1,0) -> 0 | Q161: =COUNTIF(S161:AD161,1) -> 6 | S161: 0 | T161: 1 | U161: 0 | V161: 1 | W161: 1 | X161: 1 | Y161: 1 | Z161: 0 | AA161: 1 | AB161: 0 | AC161: 0 | AD161: 0
N162: =$B$8-O162 -> 321 | O162: =($A$4*S162+$B$4*T162+$C$4*U162+$D$4*V162+$E$4*W162+$F$4*X162+$G$4*Y162+$H$4*Z162+$I$4*AA162+$J$4*AB162+$K$4*AC162+$L$4*AD162) -> 407 | P162: =IF(O162=$E$8,1,0) -> 0 | Q162: =COUNTIF(S162:AD162,1) -> 6 | S162: 0 | T162: 0 | U162: 0 | V162: 1 | W162: 0 | X162: 1 | Y162: 1 | Z162: 1 | AA162: 1 | AB162: 0 | AC162: 0 | AD162: 1
N163: =$B$8-O163 -> 365 | O163: =($A$4*S163+$B$4*T163+$C$4*U163+$D$4*V163+$E$4*W163+$F$4*X163+$G$4*Y163+$H$4*Z163+$I$4*AA163+$J$4*AB163+$K$4*AC163+$L$4*AD163) -> 363 | P163: =IF(O163=$E$8,1,0) -> 0 | Q163: =COUNTIF(S163:AD163,1) -> 6 | S163: 0 | T163: 1 | U163: 0 | V163: 0 | W163: 0 | X163: 1 | Y163: 0 | Z163: 1 | AA163: 1 | AB163: 0 | AC163: 1 | AD163: 1
N164: =$B$8-O164 -> 249 | O164: =($A$4*S164+$B$4*T164+$C$4*U164+$D$4*V164+$E$4*W164+$F$4*X164+$G$4*Y164+$H$4*Z164+$I$4*AA164+$J$4*AB164+$K$4*AC164+$L$4*AD164) -> 479 | P164: =IF(O164=$E$8,1,0) -> 0 | Q164: =COUNTIF(S164:AD164,1) -> 6 | S164: 0 | T164: 0 | U164: 1 | V164: 1 | W164: 0 | X164: 1 | Y164: 1 | Z164: 0 | AA164: 1 | AB164: 0 | AC164: 1 | AD164: 0
N165: =$B$8-O165 -> 290 | O165: =($A$4*S165+$B$4*T165+$C$4*U165+$D$4*V165+$E$4*W165+$F$4*X165+$G$4*Y165+$H$4*Z165+$I$4*AA165+$J$4*AB165+$K$4*AC165+$L$4*AD165) -> 438 | P165: =IF(O165=$E$8,1,0) -> 0 | Q165: =COUNTIF(S165:AD165,1) -> 6 | S165: 0 | T165: 0 | U165: 0 | V165: 1 | W165: 0 | X165: 1 | Y165: 1 | Z165: 0 | AA165: 1 | AB165: 0 | AC165: 1 | AD165: 1
N166: =$B$8-O166 -> 338 | O166: =($A$4*S166+$B$4*T166+$C$4*U166+$D$4*V166+$E$4*W166+$F$4*X166+$G$4*Y166+$H$4*Z166+$I$4*AA166+$J$4*AB166+$K$4*AC166+$L$4*AD166) -> 390 | P166: =IF(O166=$E$8,1,0) -> 0 | Q166: =COUNTIF(S166:AD166,1) -> 6 | S166: 0 | T166: 0 | U166: 0 | V166: 1 | W166: 1 | X166: 0 | Y166: 1 | Z166: 1 | AA166: 0 | AB166: 1 | AC166: 1 | AD166: 0
N167: =$B$8-O167 -> 376 | O167: =($A$4*S167+$B$4*T167+$C$4*U167+$D$4*V167+$E$4*W167+$F$4*X167+$G$4*Y167+$H$4*Z167+$I$4*AA167+$J$4*AB167+$K$4*AC167+$L$4*AD167) -> 352 | P167: =IF(O167=$E$8,1,0) -> 0 | Q167: =COUNTIF(S167:AD167,1) -> 6 | S167: 0 | T167: 0 | U167: 0 | V167: 1 | W167: 1 | X167: 1 | Y167: 0 | Z167: 1 | AA167: 0 | AB167: 1 | AC167: 1 | AD167: 0
N168: =$B$8-O168 -> 335 | O168: =($A$4*S168+$B$4*T168+$C$4*U168+$D$4*V168+$E$4*W168+$F$4*X168+$G$4*Y168+$H$4*Z168+$I$4*AA168+$J$4*AB168+$K$4*AC168+$L$4*AD168) -> 393 | P168: =IF(O168=$E$8,1,0) -> 0 | Q168: =COUNTIF(S168:AD168,1) -> 6 | S168: 0 | T168: 1 | U168: 1 | V168: 0 | W168: 0 | X168: 0 | Y168: 1 | Z168: 1 | AA168: 1 | AB168: 0 | AC168: 0 | AD168: 1
N169: =$B$8-O169 -> 362 | O169: =($A$4*S169+$B$4*T169+$C$4*U169+$D$4*V169+$E$4*W169+$F$4*X169+$G$4*Y169+$H$4*Z169+$I$4*AA169+$J$4*AB169+$K$4*AC169+$L$4*AD169) -> 366 | P169: =IF(O169=$E$8,1,0) -> 0 | Q169: =COUNTIF(S169:AD169,1) -> 6 | S169: 0 | T169: 1 | U169: 1 | V169: 0 | W169: 1 | X169: 0 | Y169: 1 | Z169: 1 | AA169: 0 | AB169: 1 | AC169: 0 | AD169: 0
N170: =$B$8-O170 -> 329 | O170: =($A$4*S170+$B$4*T170+$C$4*U170+$D$4*V170+$E$4*W170+$F$4*X170+$G$4*Y170+$H$4*Z170+$I$4*AA170+$J$4*AB170+$K$4*AC170+$L$4*AD170) -> 399 | P170: =IF(O170=$E$8,1,0) -> 0 | Q170: =COUNTIF(S170:AD170,1) -> 6 | S170: 0 | T170: 0 | U170: 1 | V170: 1 | W170: 0 | X170: 0 | Y170: 1 | Z170: 1 | AA170: 0 | AB170: 1 | AC170: 1 | AD170: 0
N171: =$B$8-O171 -> 280 | O171: =($A$4*S171+$B$4*T171+$C$4*U171+$D$4*V171+$E$4*W171+$F$4*X171+$G$4*Y171+$H$4*Z171+$I$4*AA171+$J$4*AB171+$K$4*AC171+$L$4*AD171) -> 448 | P171: =IF(O171=$E$8,1,0) -> 0 | Q171: =COUNTIF(S171:AD171,1) -> 6 | S171: 0 | T171: 0 | U171: 1 | V171: 0 | W171: 1 | X171: 1 | Y171: 1 | Z171: 1 | AA171: 0 | AB171: 0 | AC171: 1 | AD171: 0
N172: =$B$8-O172 -> 344 | O172: =($A$4*S172+$B$4*T172+$C$4*U172+$D$4*V172+$E$4*W172+$F$4*X172+$G$4*Y172+$H$4*Z172+$I$4*AA172+$J$4*AB172+$K$4*AC172+$L$4*AD172) -> 384 | P172: =IF(O172=$E$8,1,0) -> 0 | Q172: =COUNTIF(S172:AD172,1) -> 6 | S172: 0 | T172: 1 | U172: 0 | V172: 0 | W172: 1 | X172: 1 | Y172: 0 | Z172: 0 | AA172: 1 | AB172: 1 | AC172: 1 | AD172: 0
N173: =$B$8-O173 -> 316 | O173: =($A$4*S173+$B$4*T173+$C$4*U173+$D$4*V173+$E$4*W173+$F$4*X173+$G$4*Y173+$H$4*Z173+$I$4*AA173+$J$4*AB173+$K$4*AC173+$L$4*AD173) -> 412 | P173: =IF(O173=$E$8,1,0) -> 0 | Q173: =COUNTIF(S173:AD173,1) -> 6 | S173: 0 | T173: 0 | U173: 1 | V173: 0 | W173: 0 | X173: 1 | Y173: 0 | Z173: 1 | AA173: 1 | AB173: 1 | AC173: 1 | AD173: 0
N174: =$B$8-O174 -> 310 | O174: =($A$4*S174+$B$4*T174+$C$4*U174+$D$4*V174+$E$4*W174+$F$4*X174+$G$4*Y174+$H$4*Z174+$I$4*AA174+$J$4*AB174+$K$4*AC174+$L$4*AD174) -> 418 | P174: =IF(O174=$E$8,1,0) -> 0 | Q174: =COUNTIF(S174:AD174,1) -> 6 | S174: 0 | T174: 1 | U174: 1 | V174: 0 | W174: 1 | X174: 1 | Y174: 0 | Z174: 0 | AA174: 1 | AB174: 0 | AC174: 1 | AD174: 0
N175: =$B$8-O175 -> 298 | O175: =($A$4*S175+$B$4*T175+$C$4*U175+$D$4*V175+$E$4*W175+$F$4*X175+$G$4*Y175+$H$4*Z175+$I$4*AA175+$J$4*AB175+$K$4*AC175+$L$4*AD175) -> 430 | P175: =IF(O175=$E$8,1,0) -> 0 | Q175: =COUNTIF(S175:AD175,1) -> 6 | S175: 0 | T175: 0 | U175: 1 | V175: 1 | W175: 1 | X175: 0 | Y175: 1 | Z175: 0 | AA175: 1 | AB175: 1 | AC175: 0 | AD175: 0
N176: =$B$8-O176 -> 330 | O176: =($A$4*S176+$B$4*T176+$C$4*U176+$D$4*V176+$E$4*W176+$F$4*X176+$G$4*Y176+$H$4*Z176+$I$4*AA176+$J$4*AB176+$K$4*AC176+$L$4*AD176) -> 398 | P176: =IF(O176=$E$8,1,0) -> 0 | Q176: =COUNTIF(S176:AD176,1) -> 6 | S176: 0 | T176: 0 | U176: 1 | V176: 0 | W176: 1 | X176: 0 | Y176: 0 | Z176: 1 | AA176: 1 | AB176: 0 | AC176: 1 | AD176: 1
N177: =$B$8-O177 -> 304 | O177: =($A$4*S177+$B$4*T177+$C$4*U177+$D$4*V177+$E$4*W177+$F$4*X177+$G$4*Y177+$H$4*Z177+$I$4*AA177+$J$4*AB177+$K$4*AC177+$L$4*AD177) -> 424 | P177: =IF(O177=$E$8,1,0) -> 0 | Q177: =COUNTIF(S177:AD177,1) -> 6 | S177: 0 | T177: 0 | U177: 0 | V177: 1 | W177: 0 | X177: 0 | Y177: 1 | Z177: 1 | AA177: 1 | AB177: 1 | AC177: 1 | AD177: 0
N178: =$B$8-O178 -> 316 | O178: =($A$4*S178+$B$4*T178+$C$4*U178+$D$4*V178+$E$4*W178+$F$4*X178+$G$4*Y178+$H$4*Z178+$I$4*AA178+$J$4*AB178+$K$4*AC178+$L$4*AD178) -> 412 | P178: =IF(O178=$E$8,1,0) -> 0 | Q178: =COUNTIF(S178:AD178,1) -> 6 | S178: 0 | T178: 1 | U178: 0 | V178: 0 | W178: 1 | X178: 1 | Y178: 1 | Z178: 0 | AA178: 1 | AB178: 1 | AC178: 0 | AD178: 0
N179: =$B$8-O179 -> 303 | O179: =($A$4*S179+$B$4*T179+$C$4*U179+$D$4*V179+$E$4*W179+$F$4*X179+$G$4*Y179+$H$4*Z179+$I$4*AA179+$J$4*AB179+$K$4*AC179+$L$4*AD179) -> 425 | P179: =IF(O179=$E$8,1,0) -> 0 | Q179: =COUNTIF(S179:AD179,1) -> 6 | S179: 0 | T179: 1 | U179: 1 | V179: 0 | W179: 1 | X179: 0 | Y179: 1 | Z179: 1 | AA179: 1 | AB179: 0 | AC179: 0 | AD179: 0
N180: =$B$8-O180 -> 309 | O180: =($A$4*S180+$B$4*T180+$C$4*U180+$D$4*V180+$E$4*W180+$F$4*X180+$G$4*Y180+$H$4*Z180+$I$4*AA180+$J$4*AB180+$K$4*AC180+$L$4*AD180) -> 419 | P180: =IF(O180=$E$8,1,0) -> 0 | Q180: =COUNTIF(S180:AD180,1) -> 6 | S180: 0 | T180: 0 | U180: 1 | V180: 0 | W180: 1 | X180: 1 | Y180: 0 | Z180: 0 | AA180: 1 | AB180: 0 | AC180: 1 | AD180: 1
N181: =$B$8-O181 -> 370 | O181: =($A$4*S181+$B$4*T181+$C$4*U181+$D$4*V181+$E$4*W181+$F$4*X181+$G$4*Y181+$H$4*Z181+$I$4*AA181+$J$4*AB181+$K$4*AC181+$L$4*AD181) -> 358 | P181: =IF(O181=$E$8,1,0) -> 0 | Q181: =COUNTIF(S181:AD181,1) -> 6 | S181: 0 | T181: 0 | U181: 0 | V181: 1 | W181: 0 | X181: 0 | Y181: 1 | Z181: 1 | AA181: 0 | AB181: 1 | AC181: 1 | AD181: 1
N182: =$B$8-O182 -> 253 | O182: =($A$4*S182+$B$4*T182+$C$4*U182+$D$4*V182+$E$4*W182+$F$4*X182+$G$4*Y182+$H$4*Z182+$I$4*AA182+$J$4*AB182+$K$4*AC182+$L$4*AD182) -> 475 | P182: =IF(O182=$E$8,1,0) -> 0 | Q182: =COUNTIF(S182:AD182,1) -> 6 | S182: 0 | T182: 0 | U182: 1 | V182: 0 | W182: 1 | X182: 0 | Y182: 1 | Z182: 1 | AA182: 1 | AB182: 0 | AC182: 1 | AD182: 0
N183: =$B$8-O183 -> 394 | O183: =($A$4*S183+$B$4*T183+$C$4*U183+$D$4*V183+$E$4*W183+$F$4*X183+$G$4*Y183+$H$4*Z183+$I$4*AA183+$J$4*AB183+$K$4*AC183+$L$4*AD183) -> 334 | P183: =IF(O183=$E$8,1,0) -> 0 | Q183: =COUNTIF(S183:AD183,1) -> 6 | S183: 0 | T183: 1 | U183: 1 | V183: 0 | W183: 0 | X183: 0 | Y183: 1 | Z183: 1 | AA183: 0 | AB183: 1 | AC183: 0 | AD183: 1
N184: =$B$8-O184 -> 416 | O184: =($A$4*S184+$B$4*T184+$C$4*U184+$D$4*V184+$E$4*W184+$F$4*X184+$G$4*Y184+$H$4*Z184+$I$4*AA184+$J$4*AB184+$K$4*AC184+$L$4*AD184) -> 312 | P184: =IF(O184=$E$8,1,0) -> 0 | Q184: =COUNTIF(S184:AD184,1) -> 6 | S184: 0 | T184: 0 | U184: 1 | V184: 1 | W184: 0 | X184: 1 | Y184: 0 | Z184: 1 | AA184: 0 | AB184: 1 | AC184: 0 | AD184: 1
N185: =$B$8-O185 -> 385 | O185: =($A$4*S185+$B$4*T185+$C$4*U185+$D$4*V185+$E$4*W185+$F$4*X185+$G$4*Y185+$H$4*Z185+$I$4*AA185+$J$4*AB185+$K$4*AC185+$L$4*AD185) -> 343 | P185: =IF(O185=$E$8,1,0) -> 0 | Q185: =COUNTIF(S185:AD185,1) -> 6 | S185: 0 | T185: 0 | U185: 1 | V185: 1 | W185: 0 | X185: 1 | Y185: 0 | Z185: 0 | AA185: 0 | AB185: 1 | AC185: 1 | AD185: 1
N186: =$B$8-O186 -> 334 | O186: =($A$4*S186+$B$4*T186+$C$4*U186+$D$4*V186+$E$4*W186+$F$4*X186+$G$4*Y186+$H$4*Z186+$I$4*AA186+$J$4*AB186+$K$4*AC186+$L$4*AD186) -> 394 | P186: =IF(O186=$E$8,1,0) -> 0 | Q186: =COUNTIF(S186:AD186,1) -> 6 | S186: 0 | T186: 0 | U186: 1 | V186: 0 | W186: 0 | X186: 1 | Y186: 0 | Z186: 0 | AA186: 1 | AB186: 1 | AC186: 1 | AD186: 1
N187: =$B$8-O187 -> 323 | O187: =($A$4*S187+$B$4*T187+$C$4*U187+$D$4*V187+$E$4*W187+$F$4*X187+$G$4*Y187+$H$4*Z187+$I$4*AA187+$J$4*AB187+$K$4*AC187+$L$4*AD187) -> 405 | P187: =IF(O187=$E$8,1,0) -> 0 | Q187: =COUNTIF(S187:AD187,1) -> 6 | S187: 0 | T187: 1 | U187: 0 | V187: 0 | W187: 1 | X187: 1 | Y187: 1 | Z187: 0 | AA187: 1 | AB187: 0 | AC187: 0 | AD187: 1
N188: =$B$8-O188 -> 424 | O188: =($A$4*S188+$B$4*T188+$C$4*U188+$D$4*V188+$E$4*W188+$F$4*X188+$G$4*Y188+$H$4*Z188+$I$4*AA188+$J$4*AB188+$K$4*AC188+$L$4*AD188) -> 304 | P188: =IF(O188=$E$8,1,0) -> 0 | Q188: =COUNTIF(S188:AD188,1) -> 6 | S188: 0 | T188: 1 | U188: 1 | V188: 1 | W188: 0 | X188: 1 | Y188: 0 | Z188: 1 | AA188: 0 | AB188: 0 | AC188: 0 | AD188: 1
N189: =$B$8-O189 -> 312 | O189: =($A$4*S189+$B$4*T189+$C$4*U189+$D$4*V189+$E$4*W189+$F$4*X189+$G$4*Y189+$H$4*Z189+$I$4*AA189+$J$4*AB189+$K$4*AC189+$L$4*AD189) -> 416 | P189: =IF(O189=$E$8,1,0) -> 0 | Q189: =COUNTIF(S189:AD189,1) -> 6 | S189: 0 | T189: 0 | U189: 1 | V189: 0 | W189: 1 | X189: 0 | Y189: 1 | Z189: 1 | AA189: 0 | AB189: 1 | AC189: 1 | AD189: 0
N190: =$B$8-O190 -> 332 | O190: =($A$4*S190+$B$4*T190+$C$4*U190+$D$4*V190+$E$4*W190+$F$4*X190+$G$4*Y190+$H$4*Z190+$I$4*AA190+$J$4*AB190+$K$4*AC190+$L$4*AD190) -> 396 | P190: =IF(O190=$E$8,1,0) -> 0 | Q190: =COUNTIF(S190:AD190,1) -> 6 | S190: 0 | T190: 0 | U190: 0 | V190: 0 | W190: 1 | X190: 1 | Y190: 0 | Z190: 1 | AA190: 1 | AB190: 0 | AC190: 1 | AD190: 1
N191: =$B$8-O191 -> 246 | O191: =($A$4*S191+$B$4*T191+$C$4*U191+$D$4*V191+$E$4*W191+$F$4*X191+$G$4*Y191+$H$4*Z191+$I$4*AA191+$J$4*AB191+$K$4*AC191+$L$4*AD191) -> 482 | P191: =IF(O191=$E$8,1,0) -> 0 | Q191: =COUNTIF(S191:AD191,1) -> 6 | S191: 0 | T191: 0 | U191: 1 | V191: 0 | W191: 0 | X191: 1 | Y191: 1 | Z191: 1 | AA191: 1 | AB191: 0 | AC191: 1 | AD191: 0
N192: =$B$8-O192 -> 289 | O192: =($A$4*S192+$B$4*T192+$C$4*U192+$D$4*V192+$E$4*W192+$F$4*X192+$G$4*Y192+$H$4*Z192+$I$4*AA192+$J$4*AB192+$K$4*AC192+$L$4*AD192) -> 439 | P192: =IF(O192=$E$8,1,0) -> 0 | Q192: =COUNTIF(S192:AD192,1) -> 6 | S192: 0 | T192: 1 | U192: 1 | V192: 1 | W192: 0 | X192: 0 | Y192: 1 | Z192: 0 | AA192: 1 | AB192: 0 | AC192: 1 | AD192: 0
N193: =$B$8-O193 -> 375 | O193: =($A$4*S193+$B$4*T193+$C$4*U193+$D$4*V193+$E$4*W193+$F$4*X193+$G$4*Y193+$H$4*Z193+$I$4*AA193+$J$4*AB193+$K$4*AC193+$L$4*AD193) -> 353 | P193: =IF(O193=$E$8,1,0) -> 0 | Q193: =COUNTIF(S193:AD193,1) -> 6 | S193: 0 | T193: 1 | U193: 0 | V193: 1 | W193: 1 | X193: 0 | Y193: 0 | Z193: 0 | AA193: 1 | AB193: 0 | AC193: 1 | AD193: 1
N194: =$B$8-O194 -> 352 | O194: =($A$4*S194+$B$4*T194+$C$4*U194+$D$4*V194+$E$4*W194+$F$4*X194+$G$4*Y194+$H$4*Z194+$I$4*AA194+$J$4*AB194+$K$4*AC194+$L$4*AD194) -> 376 | P194: =IF(O194=$E$8,1,0) -> 0 | Q194: =COUNTIF(S194:AD194,1) -> 6 | S194: 0 | T194: 1 | U194: 1 | V194: 0 | W194: 0 | X194: 0 | Y194: 1 | Z194: 1 | AA194: 0 | AB194: 0 | AC194: 1 | AD194: 1
N195: =$B$8-O195 -> 399 | O195: =($A$4*S195+$B$4*T195+$C$4*U195+$D$4*V195+$E$4*W195+$F$4*X195+$G$4*Y195+$H$4*Z195+$I$4*AA195+$J$4*AB195+$K$4*AC195+$L$4*AD195) -> 329 | P195: =IF(O195=$E$8,1,0) -> 0 | Q195: =COUNTIF(S195:AD195,1) -> 6 | S195: 0 | T195: 1 | U195: 0 | V195: 0 | W195: 1 | X195: 1 | Y195: 0 | Z195: 1 | AA195: 0 | AB195: 0 | AC195: 1 | AD195: 1
N196: =$B$8-O196 -> 308 | O196: =($A$4*S196+$B$4*T196+$C$4*U196+$D$4*V196+$E$4*W196+$F$4*X196+$G$4*Y196+$H$4*Z196+$I$4*AA196+$J$4*AB196+$K$4*AC196+$L$4*AD196) -> 420 | P196: =IF(O196=$E$8,1,0) -> 0 | Q196: =COUNTIF(S196:AD196,1) -> 6 | S196: 0 | T196: 0 | U196: 1 | V196: 1 | W196: 0 | X196: 1 | Y196: 0 | Z196: 1 | AA196: 1 | AB196: 0 | AC196: 1 | AD196: 0
N197: =$B$8-O197 -> 336 | O197: =($A$4*S197+$B$4*T197+$C$4*U197+$D$4*V197+$E$4*W197+$F$4*X197+$G$4*Y197+$H$4*Z197+$I$4*AA197+$J$4*AB197+$K$4*AC197+$L$4*AD197) -> 392 | P197: =IF(O197=$E$8,1,0) -> 0 | Q197: =COUNTIF(S197:AD197,1) -> 6 | S197: 0 | T197: 1 | U197: 0 | V197: 1 | W197: 1 | X197: 1 | Y197: 0 | Z197: 0 | AA197: 1 | AB197: 0 | AC197: 1 | AD197: 0
N198: =$B$8-O198 -> 356 | O198: =($A$4*S198+$B$4*T198+$C$4*U198+$D$4*V198+$E$4*W198+$F$4*X198+$G$4*Y198+$H$4*Z198+$I$4*AA198+$J$4*AB198+$K$4*AC198+$L$4*AD198) -> 372 | P198: =IF(O198=$E$8,1,0) -> 0 | Q198: =COUNTIF(S198:AD198,1) -> 6 | S198: 0 | T198: 0 | U198: 0 | V198: 1 | W198: 1 | X198: 0 | Y198: 0 | Z198: 1 | AA198: 1 | AB198: 0 | AC198: 1 | AD198: 1
N199: =$B$8-O199 -> 288 | O199: =($A$4*S199+$B$4*T199+$C$4*U199+$D$4*V199+$E$4*W199+$F$4*X199+$G$4*Y199+$H$4*Z199+$I$4*AA199+$J$4*AB199+$K$4*AC199+$L$4*AD199) -> 440 | P199: =IF(O199=$E$8,1,0) -> 0 | Q199: =COUNTIF(S199:AD199,1) -> 6 | S199: 0 | T199: 0 | U199: 1 | V199: 0 | W199: 0 | X199: 1 | Y199: 1 | Z199: 1 | AA199: 1 | AB199: 1 | AC199: 0 | AD199: 0
N200: =$B$8-O200 -> 376 | O200: =($A$4*S200+$B$4*T200+$C$4*U200+$D$4*V200+$E$4*W200+$F$4*X200+$G$4*Y200+$H$4*Z200+$I$4*AA200+$J$4*AB200+$K$4*AC200+$L$4*AD200) -> 352 | P200: =IF(O200=$E$8,1,0) -> 0 | Q200: =COUNTIF(S200:AD200,1) -> 6 | S200: 0 | T200: 1 | U200: 1 | V200: 0 | W200: 1 | X200: 1 | Y200: 0 | Z200: 0 | AA200: 0 | AB200: 0 | AC200: 1 | AD200: 1
... 262 more rows
